{"text_format":"1","workbook":"xlsx","n_sheets":6,"sheets":["mémo pour remplir le tableau","Données","tmp","Bilans","listes","Regroupements"],"not_rendered":{"charts":6,"images":0,"macros":1,"external_links":1,"defined_names":45,"comments":1,"pivot_tables":0},"unopened":[],"bounds":{"document_bytes":16777216,"sheet_cells":100000,"rows_first":2000,"rows_last":500,"rows_between":2000,"halvings":0,"cell_chars":16384,"cell_head_chars":4096},"cells_cut":0,"cells_raw":0,"read":"whole","date_system":"1900"}

{"sheet":"mémo pour remplir le tableau","index":0,"n_rows":92,"n_cols":2,"rows_kept":92,"cut":false,"hidden":false,"merged":[[26,0,26,1],[28,0,28,1],[0,0,0,1],[2,0,2,1],[10,0,10,1],[15,0,15,1],[20,0,20,1]]}
["MEMO POUR REMPLIR LE TABLEAU"]
[]
["Ajouter un événement"]
["*","Se positionner à la fin du tableau sur une nouvelle ligne"]
["*","Remplir obligatoirement les colonnes A à J"]
["*","Colonne K \"Commentaires\" optionnelle"]
["*","Données des colonnes L,M, N, etc, calculées de manière automatique, servant aux tableaux bilans : Ne pas y toucher"]
["*","Remplir la colonne F \"Enseignant référent\" en inscrivant d'abord le nom de l'enseignant, puis son prénom. Veiller à l'orthographe.\nDans le cas d'un professeur se rendant à la médiathèque avec plusieurs classes (ex d'un prof documentaliste), préciser à la suite de son nom + prénom + la classe ou le groupe (ex : 6ème A, groupe 1)."]
["*","Cas des accueils organisés en binôme : Inscrire dans l'ordre que vous souhaitez les deux secteurs concernés. SAUF pour les accueils effectués par la médiathèque du Rize (RIZE MED) qui doivent toujours être inscrits en colonne B.\nEx : Accueil couplée médiathèque/médiation culturelle : En colonne B \"RIZE MED\", en colonne C \"RIZE VALO\""]
[]
["Je veux ajouter un nouvel accueil entre deux déjà existants, de manière chronologique"]
["*","Ne jamais insérer une nouvelle ligne, pour éviter des erreurs aux conséquences fatales (!)"]
["*","Se positionner à la fin du tableau, sur la première ligne non remplie et entrer les données"]
["*","Se positionner sur la cellule A1 \"Date venue\", cliquer sur la flèche en bas à droite de la cellule et sélectionner \"Trier du plus ancien au plus récent\" afin de positionner les accueils dans l'ordre chronologique"]
[]
["Mes événements ont disparu : vérifier qu'un filtre n'est pas actif"]
["*","Dans chaque cellule de la première ligne du tableau, si un filtre est actif, un petit entonnoir apparaît : "]
["*","Pour désactiver le filtre, cliquer sur cet entonnoir, puis à la fin du menu déroulant, activer la case \"sélectionner tout\", cliquez sur OK : tous les cellules réapparaissent"]
["*","Attention, plusieurs filtres peuvent être activés en même temps : il faut tous les désactiver en suivant la procédure ci-dessus"]
[]
["Tableaux bilans"]
["*","Nombre de classes accueillies : on ne compte pas le nombre de passages de classes dans les locaux de la bibliothèque mais le nombre de classes touchées par les actions de la bibliothèque. Ex : Une classe se rendant dans la bibliothèque tous les mois pendant un an sera comptée pour 1 et non pour 12"]
["*","Nombre d'enfants accueillis : Relatif au nombre de classes accueillies. Ex : 25 enfants ayant été accueillis sur un cycle de 3 séances compteront pour 25. (ne compte que si la colonne J indique \"Classe accueillie pour la 1ère fois\")"]
["*","Nombre d’accueils de classe effectués : On rend compte du nombre de passages de classes au sein de la bibliothèque. Ex : Une classe se rendant dans la bibliothèque tous les mois pendant un an sera comptée pour 12"]
[]
[]
["MEMO POUR L'ADMINISTRATION DU TABLEAU"]
[]
["En cas de création, d'une nouvelle donnée (nouvel établissement scolaire, nouveau niveau), penser à la rajouter :\n- Dans l'onglet listes, dans deux colonnes différents (la générale et le par quartier/niveau)\n- dans l'onglet Regroupements"]
[]
[]
[]
[]
[]
[]
[]
[]
[]
[]
[]
[]
[]
[]
[]
[]
[]
[]
[]
[]
[]
[]
[]
[]
[]
[]
[]
[]
[]
[]
[]
[]
[]
[]
[]
[]
[]
[]
[]
[]
[]
[]
[]
[]
[]
[]
[]
[]
[]
[]
[]
["Feuille onglet tmp (masquée)"]
["Pour simplifier et avoir moins de lignes de programmes la bdd est filtrée sur le champ (ou regroupement, par exemple Maternelle) de la colonne du tableau, puis extraite dans tmp. Puis on passe à la suivante."]
["Sur cette bdd restreinte sont filtrées successivement les lignes du tableau (ex Réseau des médiathèques)."]
["Ce qui permet d'avoir le max élèves et les autres chiffres avec moins de prises de tête."]
[]
["Là elle est masquée. Mais possibilité de mettre cette feuille en xlSheetVeryHidden. Comme ça elle n'apparaîtra pas dans 'Afficher...', ça fera comme si elle n'existait pas pour les utilisateurs."]
[]
["Et on est bien d'accord que dans l'onglet \"Regroupements\", je pourrai rajouter si besoin l'année prochaine des niveaux de classe ou des établissements scolaires, ils seront pris en compte sans encombre ? "]
["Théoriquement oui, tu pourras même en créer de nouveaux si besoin."]
["Le tout est de bien respecter l'équivalence des libellés lignes/colonnes de tes tableaux, et du libellé du champ lié dans ta bdd."]
[]
["https://www.commentcamarche.net/forum/affich-35499266-calculer-l-occurrence-de-deux-donnees-pas-somme#p35504763"]

{"sheet":"Données","index":1,"n_rows":143,"n_cols":14,"rows_kept":143,"cut":false,"hidden":false,"merged":[]}
["Date venue","Secteur organisateur","Secteur organisateur binôme","Etablissement scolaire","Niveau de classe","Enseignant référent (Nom Prénom)","Nombre enfants","In situ / hors les murs","Type de visite","Appréciations","Commentaires","Groupe niveau","Quartier","Etablissement accueillant"]
["2018-10-12","MLIS J",null,"Albert Camus","autres (maternelle)","UN",25,"In situ","Album",null,null,{"$f":"IF(COUNTIF(Maternelle,E2)=1,listes!$T$1,IF(COUNTIF(Elémentaire,E2)=1,listes!$U$1,IF(COUNTIF(Collège,E2)=1,listes!$V$1,IF(COUNTIF(Lycée,E2)=1,listes!$W$1,\"\"))))","v":"Maternelle"},{"$f":"VLOOKUP(T_sept_dec[[#This Row],[Etablissement scolaire]],Regroupements!$T:$U,2,FALSE)","v":"Cyprian-les-Brosses"},{"$f":"IF(COUNTIF(FDL,B2)=1,\"FDL\",IF(COUNTIF(RIZE,B2)=1,\"RIZE\",IF(COUNTIF(MLIS,B2)=1,\"MLIS\",IF(COUNTIF(PACBUS,B2)=1,\"PAC-BUS\",IF(COUNTIF(Tonkin,B2)=1,\"TONKIN\",\"\")))))","v":"MLIS"}]
["2018-11-11","MTK",null,"Anatole France","autres (élémentaire)","DEUX",25,"In situ","Autour de la musique",null,null,{"$f":"IF(COUNTIF(Maternelle,E3)=1,listes!$T$1,IF(COUNTIF(Elémentaire,E3)=1,listes!$U$1,IF(COUNTIF(Collège,E3)=1,listes!$V$1,IF(COUNTIF(Lycée,E3)=1,listes!$W$1,\"\"))))","v":"Elémentaire"},{"$f":"VLOOKUP(T_sept_dec[[#This Row],[Etablissement scolaire]],Regroupements!$T:$U,2,FALSE)","v":"Gratte-ciel-Dedieu-Charmettes"},"TONKIN"]
["2018-09-13","MLIS J",null,"Antonin Perrin","ps","TROIS",20,"In situ","Atelier Youtuber",null,null,{"$f":"IF(COUNTIF(Maternelle,E4)=1,listes!$T$1,IF(COUNTIF(Elémentaire,E4)=1,listes!$U$1,IF(COUNTIF(Collège,E4)=1,listes!$V$1,IF(COUNTIF(Lycée,E4)=1,listes!$W$1,\"\"))))","v":"Maternelle"},{"$f":"VLOOKUP(T_sept_dec[[#This Row],[Etablissement scolaire]],Regroupements!$T:$U,2,FALSE)","v":"Ferrandière-Maisons Neuves"},"MLIS"]
[null,null,null,null,null,null,null,null,null,null,null,{"$f":"IF(COUNTIF(Maternelle,E5)=1,listes!$T$1,IF(COUNTIF(Elémentaire,E5)=1,listes!$U$1,IF(COUNTIF(Collège,E5)=1,listes!$V$1,IF(COUNTIF(Lycée,E5)=1,listes!$W$1,\"\"))))","v":""},{"$f":"VLOOKUP(T_sept_dec[[#This Row],[Etablissement scolaire]],Regroupements!$T:$U,2,FALSE)","v":{"$error":"#N/A"}},""]
[null,null,null,null,null,null,null,null,null,null,null,{"$f":"IF(COUNTIF(Maternelle,E6)=1,listes!$T$1,IF(COUNTIF(Elémentaire,E6)=1,listes!$U$1,IF(COUNTIF(Collège,E6)=1,listes!$V$1,IF(COUNTIF(Lycée,E6)=1,listes!$W$1,\"\"))))","v":""},{"$f":"VLOOKUP(T_sept_dec[[#This Row],[Etablissement scolaire]],Regroupements!$T:$U,2,FALSE)","v":{"$error":"#N/A"}},""]
[null,null,null,null,null,null,null,null,null,null,null,{"$f":"IF(COUNTIF(Maternelle,E7)=1,listes!$T$1,IF(COUNTIF(Elémentaire,E7)=1,listes!$U$1,IF(COUNTIF(Collège,E7)=1,listes!$V$1,IF(COUNTIF(Lycée,E7)=1,listes!$W$1,\"\"))))","v":""},{"$f":"VLOOKUP(T_sept_dec[[#This Row],[Etablissement scolaire]],Regroupements!$T:$U,2,FALSE)","v":{"$error":"#N/A"}},""]
[null,null,null,null,null,null,null,null,null,null,null,{"$f":"IF(COUNTIF(Maternelle,E8)=1,listes!$T$1,IF(COUNTIF(Elémentaire,E8)=1,listes!$U$1,IF(COUNTIF(Collège,E8)=1,listes!$V$1,IF(COUNTIF(Lycée,E8)=1,listes!$W$1,\"\"))))","v":""},{"$f":"VLOOKUP(T_sept_dec[[#This Row],[Etablissement scolaire]],Regroupements!$T:$U,2,FALSE)","v":{"$error":"#N/A"}},""]
[null,null,null,null,null,null,null,null,null,null,null,{"$f":"IF(COUNTIF(Maternelle,E9)=1,listes!$T$1,IF(COUNTIF(Elémentaire,E9)=1,listes!$U$1,IF(COUNTIF(Collège,E9)=1,listes!$V$1,IF(COUNTIF(Lycée,E9)=1,listes!$W$1,\"\"))))","v":""},{"$f":"VLOOKUP(T_sept_dec[[#This Row],[Etablissement scolaire]],Regroupements!$T:$U,2,FALSE)","v":{"$error":"#N/A"}},""]
[null,null,null,null,null,null,null,null,null,null,null,{"$f":"IF(COUNTIF(Maternelle,E10)=1,listes!$T$1,IF(COUNTIF(Elémentaire,E10)=1,listes!$U$1,IF(COUNTIF(Collège,E10)=1,listes!$V$1,IF(COUNTIF(Lycée,E10)=1,listes!$W$1,\"\"))))","v":""},{"$f":"VLOOKUP(T_sept_dec[[#This Row],[Etablissement scolaire]],Regroupements!$T:$U,2,FALSE)","v":{"$error":"#N/A"}},""]
[null,null,null,null,null,null,null,null,null,null,null,{"$f":"IF(COUNTIF(Maternelle,E11)=1,listes!$T$1,IF(COUNTIF(Elémentaire,E11)=1,listes!$U$1,IF(COUNTIF(Collège,E11)=1,listes!$V$1,IF(COUNTIF(Lycée,E11)=1,listes!$W$1,\"\"))))","v":""},{"$f":"VLOOKUP(T_sept_dec[[#This Row],[Etablissement scolaire]],Regroupements!$T:$U,2,FALSE)","v":{"$error":"#N/A"}},""]
[null,null,null,null,null,null,null,null,null,null,null,{"$f":"IF(COUNTIF(Maternelle,E12)=1,listes!$T$1,IF(COUNTIF(Elémentaire,E12)=1,listes!$U$1,IF(COUNTIF(Collège,E12)=1,listes!$V$1,IF(COUNTIF(Lycée,E12)=1,listes!$W$1,\"\"))))","v":""},{"$f":"VLOOKUP(T_sept_dec[[#This Row],[Etablissement scolaire]],Regroupements!$T:$U,2,FALSE)","v":{"$error":"#N/A"}},""]
[null,null,null,null,null,null,null,null,null,null,null,{"$f":"IF(COUNTIF(Maternelle,E13)=1,listes!$T$1,IF(COUNTIF(Elémentaire,E13)=1,listes!$U$1,IF(COUNTIF(Collège,E13)=1,listes!$V$1,IF(COUNTIF(Lycée,E13)=1,listes!$W$1,\"\"))))","v":""},{"$f":"VLOOKUP(T_sept_dec[[#This Row],[Etablissement scolaire]],Regroupements!$T:$U,2,FALSE)","v":{"$error":"#N/A"}},""]
[null,null,null,null,null,null,null,null,null,null,null,{"$f":"IF(COUNTIF(Maternelle,E14)=1,listes!$T$1,IF(COUNTIF(Elémentaire,E14)=1,listes!$U$1,IF(COUNTIF(Collège,E14)=1,listes!$V$1,IF(COUNTIF(Lycée,E14)=1,listes!$W$1,\"\"))))","v":""},{"$f":"VLOOKUP(T_sept_dec[[#This Row],[Etablissement scolaire]],Regroupements!$T:$U,2,FALSE)","v":{"$error":"#N/A"}},""]
[null,null,null,null,null,null,null,null,null,null,null,{"$f":"IF(COUNTIF(Maternelle,E15)=1,listes!$T$1,IF(COUNTIF(Elémentaire,E15)=1,listes!$U$1,IF(COUNTIF(Collège,E15)=1,listes!$V$1,IF(COUNTIF(Lycée,E15)=1,listes!$W$1,\"\"))))","v":""},{"$f":"VLOOKUP(T_sept_dec[[#This Row],[Etablissement scolaire]],Regroupements!$T:$U,2,FALSE)","v":{"$error":"#N/A"}},""]
[null,null,null,null,null,null,null,null,null,null,null,{"$f":"IF(COUNTIF(Maternelle,E16)=1,listes!$T$1,IF(COUNTIF(Elémentaire,E16)=1,listes!$U$1,IF(COUNTIF(Collège,E16)=1,listes!$V$1,IF(COUNTIF(Lycée,E16)=1,listes!$W$1,\"\"))))","v":""},{"$f":"VLOOKUP(T_sept_dec[[#This Row],[Etablissement scolaire]],Regroupements!$T:$U,2,FALSE)","v":{"$error":"#N/A"}},""]
[null,null,null,null,null,null,null,null,null,null,null,{"$f":"IF(COUNTIF(Maternelle,E17)=1,listes!$T$1,IF(COUNTIF(Elémentaire,E17)=1,listes!$U$1,IF(COUNTIF(Collège,E17)=1,listes!$V$1,IF(COUNTIF(Lycée,E17)=1,listes!$W$1,\"\"))))","v":""},{"$f":"VLOOKUP(T_sept_dec[[#This Row],[Etablissement scolaire]],Regroupements!$T:$U,2,FALSE)","v":{"$error":"#N/A"}},""]
[null,null,null,null,null,null,null,null,null,null,null,{"$f":"IF(COUNTIF(Maternelle,E18)=1,listes!$T$1,IF(COUNTIF(Elémentaire,E18)=1,listes!$U$1,IF(COUNTIF(Collège,E18)=1,listes!$V$1,IF(COUNTIF(Lycée,E18)=1,listes!$W$1,\"\"))))","v":""},{"$f":"VLOOKUP(T_sept_dec[[#This Row],[Etablissement scolaire]],Regroupements!$T:$U,2,FALSE)","v":{"$error":"#N/A"}},""]
[null,null,null,null,null,null,null,null,null,null,null,{"$f":"IF(COUNTIF(Maternelle,E19)=1,listes!$T$1,IF(COUNTIF(Elémentaire,E19)=1,listes!$U$1,IF(COUNTIF(Collège,E19)=1,listes!$V$1,IF(COUNTIF(Lycée,E19)=1,listes!$W$1,\"\"))))","v":""},{"$f":"VLOOKUP(T_sept_dec[[#This Row],[Etablissement scolaire]],Regroupements!$T:$U,2,FALSE)","v":{"$error":"#N/A"}},""]
[null,null,null,null,null,null,null,null,null,null,null,{"$f":"IF(COUNTIF(Maternelle,E20)=1,listes!$T$1,IF(COUNTIF(Elémentaire,E20)=1,listes!$U$1,IF(COUNTIF(Collège,E20)=1,listes!$V$1,IF(COUNTIF(Lycée,E20)=1,listes!$W$1,\"\"))))","v":""},{"$f":"VLOOKUP(T_sept_dec[[#This Row],[Etablissement scolaire]],Regroupements!$T:$U,2,FALSE)","v":{"$error":"#N/A"}},""]
[null,null,null,null,null,null,null,null,null,null,null,{"$f":"IF(COUNTIF(Maternelle,E21)=1,listes!$T$1,IF(COUNTIF(Elémentaire,E21)=1,listes!$U$1,IF(COUNTIF(Collège,E21)=1,listes!$V$1,IF(COUNTIF(Lycée,E21)=1,listes!$W$1,\"\"))))","v":""},{"$f":"VLOOKUP(T_sept_dec[[#This Row],[Etablissement scolaire]],Regroupements!$T:$U,2,FALSE)","v":{"$error":"#N/A"}},""]
[null,null,null,null,null,null,null,null,null,null,null,{"$f":"IF(COUNTIF(Maternelle,E22)=1,listes!$T$1,IF(COUNTIF(Elémentaire,E22)=1,listes!$U$1,IF(COUNTIF(Collège,E22)=1,listes!$V$1,IF(COUNTIF(Lycée,E22)=1,listes!$W$1,\"\"))))","v":""},{"$f":"VLOOKUP(T_sept_dec[[#This Row],[Etablissement scolaire]],Regroupements!$T:$U,2,FALSE)","v":{"$error":"#N/A"}},""]
[null,null,null,null,null,null,null,null,null,null,null,{"$f":"IF(COUNTIF(Maternelle,E23)=1,listes!$T$1,IF(COUNTIF(Elémentaire,E23)=1,listes!$U$1,IF(COUNTIF(Collège,E23)=1,listes!$V$1,IF(COUNTIF(Lycée,E23)=1,listes!$W$1,\"\"))))","v":""},{"$f":"VLOOKUP(T_sept_dec[[#This Row],[Etablissement scolaire]],Regroupements!$T:$U,2,FALSE)","v":{"$error":"#N/A"}},""]
[null,null,null,null,null,null,null,null,null,null,null,{"$f":"IF(COUNTIF(Maternelle,E24)=1,listes!$T$1,IF(COUNTIF(Elémentaire,E24)=1,listes!$U$1,IF(COUNTIF(Collège,E24)=1,listes!$V$1,IF(COUNTIF(Lycée,E24)=1,listes!$W$1,\"\"))))","v":""},{"$f":"VLOOKUP(T_sept_dec[[#This Row],[Etablissement scolaire]],Regroupements!$T:$U,2,FALSE)","v":{"$error":"#N/A"}},""]
[null,null,null,null,null,null,null,null,null,null,null,{"$f":"IF(COUNTIF(Maternelle,E25)=1,listes!$T$1,IF(COUNTIF(Elémentaire,E25)=1,listes!$U$1,IF(COUNTIF(Collège,E25)=1,listes!$V$1,IF(COUNTIF(Lycée,E25)=1,listes!$W$1,\"\"))))","v":""},{"$f":"VLOOKUP(T_sept_dec[[#This Row],[Etablissement scolaire]],Regroupements!$T:$U,2,FALSE)","v":{"$error":"#N/A"}},""]
[null,null,null,null,null,null,null,null,null,null,null,{"$f":"IF(COUNTIF(Maternelle,E26)=1,listes!$T$1,IF(COUNTIF(Elémentaire,E26)=1,listes!$U$1,IF(COUNTIF(Collège,E26)=1,listes!$V$1,IF(COUNTIF(Lycée,E26)=1,listes!$W$1,\"\"))))","v":""},{"$f":"VLOOKUP(T_sept_dec[[#This Row],[Etablissement scolaire]],Regroupements!$T:$U,2,FALSE)","v":{"$error":"#N/A"}},""]
[null,null,null,null,null,null,null,null,null,null,null,{"$f":"IF(COUNTIF(Maternelle,E27)=1,listes!$T$1,IF(COUNTIF(Elémentaire,E27)=1,listes!$U$1,IF(COUNTIF(Collège,E27)=1,listes!$V$1,IF(COUNTIF(Lycée,E27)=1,listes!$W$1,\"\"))))","v":""},{"$f":"VLOOKUP(T_sept_dec[[#This Row],[Etablissement scolaire]],Regroupements!$T:$U,2,FALSE)","v":{"$error":"#N/A"}},""]
[null,null,null,null,null,null,null,null,null,null,null,{"$f":"IF(COUNTIF(Maternelle,E28)=1,listes!$T$1,IF(COUNTIF(Elémentaire,E28)=1,listes!$U$1,IF(COUNTIF(Collège,E28)=1,listes!$V$1,IF(COUNTIF(Lycée,E28)=1,listes!$W$1,\"\"))))","v":""},{"$f":"VLOOKUP(T_sept_dec[[#This Row],[Etablissement scolaire]],Regroupements!$T:$U,2,FALSE)","v":{"$error":"#N/A"}},""]
[null,null,null,null,null,null,null,null,null,null,null,{"$f":"IF(COUNTIF(Maternelle,E29)=1,listes!$T$1,IF(COUNTIF(Elémentaire,E29)=1,listes!$U$1,IF(COUNTIF(Collège,E29)=1,listes!$V$1,IF(COUNTIF(Lycée,E29)=1,listes!$W$1,\"\"))))","v":""},{"$f":"VLOOKUP(T_sept_dec[[#This Row],[Etablissement scolaire]],Regroupements!$T:$U,2,FALSE)","v":{"$error":"#N/A"}},""]
[null,null,null,null,null,null,null,null,null,null,null,{"$f":"IF(COUNTIF(Maternelle,E30)=1,listes!$T$1,IF(COUNTIF(Elémentaire,E30)=1,listes!$U$1,IF(COUNTIF(Collège,E30)=1,listes!$V$1,IF(COUNTIF(Lycée,E30)=1,listes!$W$1,\"\"))))","v":""},{"$f":"VLOOKUP(T_sept_dec[[#This Row],[Etablissement scolaire]],Regroupements!$T:$U,2,FALSE)","v":{"$error":"#N/A"}},""]
[null,null,null,null,null,null,null,null,null,null,null,{"$f":"IF(COUNTIF(Maternelle,E31)=1,listes!$T$1,IF(COUNTIF(Elémentaire,E31)=1,listes!$U$1,IF(COUNTIF(Collège,E31)=1,listes!$V$1,IF(COUNTIF(Lycée,E31)=1,listes!$W$1,\"\"))))","v":""},{"$f":"VLOOKUP(T_sept_dec[[#This Row],[Etablissement scolaire]],Regroupements!$T:$U,2,FALSE)","v":{"$error":"#N/A"}},""]
[null,null,null,null,null,null,null,null,null,null,null,{"$f":"IF(COUNTIF(Maternelle,E32)=1,listes!$T$1,IF(COUNTIF(Elémentaire,E32)=1,listes!$U$1,IF(COUNTIF(Collège,E32)=1,listes!$V$1,IF(COUNTIF(Lycée,E32)=1,listes!$W$1,\"\"))))","v":""},{"$f":"VLOOKUP(T_sept_dec[[#This Row],[Etablissement scolaire]],Regroupements!$T:$U,2,FALSE)","v":{"$error":"#N/A"}},""]
[null,null,null,null,null,null,null,null,null,null,null,{"$f":"IF(COUNTIF(Maternelle,E33)=1,listes!$T$1,IF(COUNTIF(Elémentaire,E33)=1,listes!$U$1,IF(COUNTIF(Collège,E33)=1,listes!$V$1,IF(COUNTIF(Lycée,E33)=1,listes!$W$1,\"\"))))","v":""},{"$f":"VLOOKUP(T_sept_dec[[#This Row],[Etablissement scolaire]],Regroupements!$T:$U,2,FALSE)","v":{"$error":"#N/A"}},""]
[null,null,null,null,null,null,null,null,null,null,null,{"$f":"IF(COUNTIF(Maternelle,E34)=1,listes!$T$1,IF(COUNTIF(Elémentaire,E34)=1,listes!$U$1,IF(COUNTIF(Collège,E34)=1,listes!$V$1,IF(COUNTIF(Lycée,E34)=1,listes!$W$1,\"\"))))","v":""},{"$f":"VLOOKUP(T_sept_dec[[#This Row],[Etablissement scolaire]],Regroupements!$T:$U,2,FALSE)","v":{"$error":"#N/A"}},{"$f":"IF(COUNTIF(FDL,B34)=1,\"FDL\",IF(COUNTIF(RIZE,B34)=1,\"RIZE\",IF(COUNTIF(MLIS,B34)=1,\"MLIS\",IF(COUNTIF(PACBUS,B34)=1,\"PAC-BUS\",IF(COUNTIF(Tonkin,B34)=1,\"TONKIN\",\"\")))))","v":""}]
[null,null,null,null,null,null,null,null,null,null,null,{"$f":"IF(COUNTIF(Maternelle,E35)=1,listes!$T$1,IF(COUNTIF(Elémentaire,E35)=1,listes!$U$1,IF(COUNTIF(Collège,E35)=1,listes!$V$1,IF(COUNTIF(Lycée,E35)=1,listes!$W$1,\"\"))))","v":""},{"$f":"VLOOKUP(T_sept_dec[[#This Row],[Etablissement scolaire]],Regroupements!$T:$U,2,FALSE)","v":{"$error":"#N/A"}},""]
[null,null,null,null,null,null,null,null,null,null,null,{"$f":"IF(COUNTIF(Maternelle,E36)=1,listes!$T$1,IF(COUNTIF(Elémentaire,E36)=1,listes!$U$1,IF(COUNTIF(Collège,E36)=1,listes!$V$1,IF(COUNTIF(Lycée,E36)=1,listes!$W$1,\"\"))))","v":""},{"$f":"VLOOKUP(T_sept_dec[[#This Row],[Etablissement scolaire]],Regroupements!$T:$U,2,FALSE)","v":{"$error":"#N/A"}},""]
[null,null,null,null,null,null,null,null,null,null,null,{"$f":"IF(COUNTIF(Maternelle,E37)=1,listes!$T$1,IF(COUNTIF(Elémentaire,E37)=1,listes!$U$1,IF(COUNTIF(Collège,E37)=1,listes!$V$1,IF(COUNTIF(Lycée,E37)=1,listes!$W$1,\"\"))))","v":""},{"$f":"VLOOKUP(T_sept_dec[[#This Row],[Etablissement scolaire]],Regroupements!$T:$U,2,FALSE)","v":{"$error":"#N/A"}},""]
[null,null,null,null,null,null,null,null,null,null,null,{"$f":"IF(COUNTIF(Maternelle,E38)=1,listes!$T$1,IF(COUNTIF(Elémentaire,E38)=1,listes!$U$1,IF(COUNTIF(Collège,E38)=1,listes!$V$1,IF(COUNTIF(Lycée,E38)=1,listes!$W$1,\"\"))))","v":""},{"$f":"VLOOKUP(T_sept_dec[[#This Row],[Etablissement scolaire]],Regroupements!$T:$U,2,FALSE)","v":{"$error":"#N/A"}},""]
[null,null,null,null,null,null,null,null,null,null,null,{"$f":"IF(COUNTIF(Maternelle,E39)=1,listes!$T$1,IF(COUNTIF(Elémentaire,E39)=1,listes!$U$1,IF(COUNTIF(Collège,E39)=1,listes!$V$1,IF(COUNTIF(Lycée,E39)=1,listes!$W$1,\"\"))))","v":""},{"$f":"VLOOKUP(T_sept_dec[[#This Row],[Etablissement scolaire]],Regroupements!$T:$U,2,FALSE)","v":{"$error":"#N/A"}},""]
[null,null,null,null,null,null,null,null,null,null,null,{"$f":"IF(COUNTIF(Maternelle,E40)=1,listes!$T$1,IF(COUNTIF(Elémentaire,E40)=1,listes!$U$1,IF(COUNTIF(Collège,E40)=1,listes!$V$1,IF(COUNTIF(Lycée,E40)=1,listes!$W$1,\"\"))))","v":""},{"$f":"VLOOKUP(T_sept_dec[[#This Row],[Etablissement scolaire]],Regroupements!$T:$U,2,FALSE)","v":{"$error":"#N/A"}},""]
[null,null,null,null,null,null,null,null,null,null,null,{"$f":"IF(COUNTIF(Maternelle,E41)=1,listes!$T$1,IF(COUNTIF(Elémentaire,E41)=1,listes!$U$1,IF(COUNTIF(Collège,E41)=1,listes!$V$1,IF(COUNTIF(Lycée,E41)=1,listes!$W$1,\"\"))))","v":""},{"$f":"VLOOKUP(T_sept_dec[[#This Row],[Etablissement scolaire]],Regroupements!$T:$U,2,FALSE)","v":{"$error":"#N/A"}},""]
[null,null,null,null,null,null,null,null,null,null,null,{"$f":"IF(COUNTIF(Maternelle,E42)=1,listes!$T$1,IF(COUNTIF(Elémentaire,E42)=1,listes!$U$1,IF(COUNTIF(Collège,E42)=1,listes!$V$1,IF(COUNTIF(Lycée,E42)=1,listes!$W$1,\"\"))))","v":""},{"$f":"VLOOKUP(T_sept_dec[[#This Row],[Etablissement scolaire]],Regroupements!$T:$U,2,FALSE)","v":{"$error":"#N/A"}},""]
[null,null,null,null,null,null,null,null,null,null,null,{"$f":"IF(COUNTIF(Maternelle,E43)=1,listes!$T$1,IF(COUNTIF(Elémentaire,E43)=1,listes!$U$1,IF(COUNTIF(Collège,E43)=1,listes!$V$1,IF(COUNTIF(Lycée,E43)=1,listes!$W$1,\"\"))))","v":""},{"$f":"VLOOKUP(T_sept_dec[[#This Row],[Etablissement scolaire]],Regroupements!$T:$U,2,FALSE)","v":{"$error":"#N/A"}},""]
[null,null,null,null,null,null,null,null,null,null,null,{"$f":"IF(COUNTIF(Maternelle,E44)=1,listes!$T$1,IF(COUNTIF(Elémentaire,E44)=1,listes!$U$1,IF(COUNTIF(Collège,E44)=1,listes!$V$1,IF(COUNTIF(Lycée,E44)=1,listes!$W$1,\"\"))))","v":""},{"$f":"VLOOKUP(T_sept_dec[[#This Row],[Etablissement scolaire]],Regroupements!$T:$U,2,FALSE)","v":{"$error":"#N/A"}},""]
[null,null,null,null,null,null,null,null,null,null,null,{"$f":"IF(COUNTIF(Maternelle,E45)=1,listes!$T$1,IF(COUNTIF(Elémentaire,E45)=1,listes!$U$1,IF(COUNTIF(Collège,E45)=1,listes!$V$1,IF(COUNTIF(Lycée,E45)=1,listes!$W$1,\"\"))))","v":""},{"$f":"VLOOKUP(T_sept_dec[[#This Row],[Etablissement scolaire]],Regroupements!$T:$U,2,FALSE)","v":{"$error":"#N/A"}},""]
[null,null,null,null,null,null,null,null,null,null,null,{"$f":"IF(COUNTIF(Maternelle,E46)=1,listes!$T$1,IF(COUNTIF(Elémentaire,E46)=1,listes!$U$1,IF(COUNTIF(Collège,E46)=1,listes!$V$1,IF(COUNTIF(Lycée,E46)=1,listes!$W$1,\"\"))))","v":""},{"$f":"VLOOKUP(T_sept_dec[[#This Row],[Etablissement scolaire]],Regroupements!$T:$U,2,FALSE)","v":{"$error":"#N/A"}},""]
[null,null,null,null,null,null,null,null,null,null,null,{"$f":"IF(COUNTIF(Maternelle,E47)=1,listes!$T$1,IF(COUNTIF(Elémentaire,E47)=1,listes!$U$1,IF(COUNTIF(Collège,E47)=1,listes!$V$1,IF(COUNTIF(Lycée,E47)=1,listes!$W$1,\"\"))))","v":""},{"$f":"VLOOKUP(T_sept_dec[[#This Row],[Etablissement scolaire]],Regroupements!$T:$U,2,FALSE)","v":{"$error":"#N/A"}},""]
[null,null,null,null,null,null,null,null,null,null,null,{"$f":"IF(COUNTIF(Maternelle,E48)=1,listes!$T$1,IF(COUNTIF(Elémentaire,E48)=1,listes!$U$1,IF(COUNTIF(Collège,E48)=1,listes!$V$1,IF(COUNTIF(Lycée,E48)=1,listes!$W$1,\"\"))))","v":""},{"$f":"VLOOKUP(T_sept_dec[[#This Row],[Etablissement scolaire]],Regroupements!$T:$U,2,FALSE)","v":{"$error":"#N/A"}},""]
[null,null,null,null,null,null,null,null,null,null,null,{"$f":"IF(COUNTIF(Maternelle,E49)=1,listes!$T$1,IF(COUNTIF(Elémentaire,E49)=1,listes!$U$1,IF(COUNTIF(Collège,E49)=1,listes!$V$1,IF(COUNTIF(Lycée,E49)=1,listes!$W$1,\"\"))))","v":""},{"$f":"VLOOKUP(T_sept_dec[[#This Row],[Etablissement scolaire]],Regroupements!$T:$U,2,FALSE)","v":{"$error":"#N/A"}},""]
[null,null,null,null,null,null,null,null,null,null,null,{"$f":"IF(COUNTIF(Maternelle,E50)=1,listes!$T$1,IF(COUNTIF(Elémentaire,E50)=1,listes!$U$1,IF(COUNTIF(Collège,E50)=1,listes!$V$1,IF(COUNTIF(Lycée,E50)=1,listes!$W$1,\"\"))))","v":""},{"$f":"VLOOKUP(T_sept_dec[[#This Row],[Etablissement scolaire]],Regroupements!$T:$U,2,FALSE)","v":{"$error":"#N/A"}},""]
[null,null,null,null,null,null,null,null,null,null,null,{"$f":"IF(COUNTIF(Maternelle,E51)=1,listes!$T$1,IF(COUNTIF(Elémentaire,E51)=1,listes!$U$1,IF(COUNTIF(Collège,E51)=1,listes!$V$1,IF(COUNTIF(Lycée,E51)=1,listes!$W$1,\"\"))))","v":""},{"$f":"VLOOKUP(T_sept_dec[[#This Row],[Etablissement scolaire]],Regroupements!$T:$U,2,FALSE)","v":{"$error":"#N/A"}},""]
[null,null,null,null,null,null,null,null,null,null,null,{"$f":"IF(COUNTIF(Maternelle,E52)=1,listes!$T$1,IF(COUNTIF(Elémentaire,E52)=1,listes!$U$1,IF(COUNTIF(Collège,E52)=1,listes!$V$1,IF(COUNTIF(Lycée,E52)=1,listes!$W$1,\"\"))))","v":""},{"$f":"VLOOKUP(T_sept_dec[[#This Row],[Etablissement scolaire]],Regroupements!$T:$U,2,FALSE)","v":{"$error":"#N/A"}},""]
[null,null,null,null,null,null,null,null,null,null,null,{"$f":"IF(COUNTIF(Maternelle,E53)=1,listes!$T$1,IF(COUNTIF(Elémentaire,E53)=1,listes!$U$1,IF(COUNTIF(Collège,E53)=1,listes!$V$1,IF(COUNTIF(Lycée,E53)=1,listes!$W$1,\"\"))))","v":""},{"$f":"VLOOKUP(T_sept_dec[[#This Row],[Etablissement scolaire]],Regroupements!$T:$U,2,FALSE)","v":{"$error":"#N/A"}},""]
[null,null,null,null,null,null,null,null,null,null,null,{"$f":"IF(COUNTIF(Maternelle,E54)=1,listes!$T$1,IF(COUNTIF(Elémentaire,E54)=1,listes!$U$1,IF(COUNTIF(Collège,E54)=1,listes!$V$1,IF(COUNTIF(Lycée,E54)=1,listes!$W$1,\"\"))))","v":""},{"$f":"VLOOKUP(T_sept_dec[[#This Row],[Etablissement scolaire]],Regroupements!$T:$U,2,FALSE)","v":{"$error":"#N/A"}},""]
[null,null,null,null,null,null,null,null,null,null,null,{"$f":"IF(COUNTIF(Maternelle,E55)=1,listes!$T$1,IF(COUNTIF(Elémentaire,E55)=1,listes!$U$1,IF(COUNTIF(Collège,E55)=1,listes!$V$1,IF(COUNTIF(Lycée,E55)=1,listes!$W$1,\"\"))))","v":""},{"$f":"VLOOKUP(T_sept_dec[[#This Row],[Etablissement scolaire]],Regroupements!$T:$U,2,FALSE)","v":{"$error":"#N/A"}},""]
[null,null,null,null,null,null,null,null,null,null,null,{"$f":"IF(COUNTIF(Maternelle,E56)=1,listes!$T$1,IF(COUNTIF(Elémentaire,E56)=1,listes!$U$1,IF(COUNTIF(Collège,E56)=1,listes!$V$1,IF(COUNTIF(Lycée,E56)=1,listes!$W$1,\"\"))))","v":""},{"$f":"VLOOKUP(T_sept_dec[[#This Row],[Etablissement scolaire]],Regroupements!$T:$U,2,FALSE)","v":{"$error":"#N/A"}},""]
[null,null,null,null,null,null,null,null,null,null,null,{"$f":"IF(COUNTIF(Maternelle,E57)=1,listes!$T$1,IF(COUNTIF(Elémentaire,E57)=1,listes!$U$1,IF(COUNTIF(Collège,E57)=1,listes!$V$1,IF(COUNTIF(Lycée,E57)=1,listes!$W$1,\"\"))))","v":""},{"$f":"VLOOKUP(T_sept_dec[[#This Row],[Etablissement scolaire]],Regroupements!$T:$U,2,FALSE)","v":{"$error":"#N/A"}},""]
[null,null,null,null,null,null,null,null,null,null,null,{"$f":"IF(COUNTIF(Maternelle,E58)=1,listes!$T$1,IF(COUNTIF(Elémentaire,E58)=1,listes!$U$1,IF(COUNTIF(Collège,E58)=1,listes!$V$1,IF(COUNTIF(Lycée,E58)=1,listes!$W$1,\"\"))))","v":""},{"$f":"VLOOKUP(T_sept_dec[[#This Row],[Etablissement scolaire]],Regroupements!$T:$U,2,FALSE)","v":{"$error":"#N/A"}},""]
[null,null,null,null,null,null,null,null,null,null,null,{"$f":"IF(COUNTIF(Maternelle,E59)=1,listes!$T$1,IF(COUNTIF(Elémentaire,E59)=1,listes!$U$1,IF(COUNTIF(Collège,E59)=1,listes!$V$1,IF(COUNTIF(Lycée,E59)=1,listes!$W$1,\"\"))))","v":""},{"$f":"VLOOKUP(T_sept_dec[[#This Row],[Etablissement scolaire]],Regroupements!$T:$U,2,FALSE)","v":{"$error":"#N/A"}},""]
[null,null,null,null,null,null,null,null,null,null,null,{"$f":"IF(COUNTIF(Maternelle,E60)=1,listes!$T$1,IF(COUNTIF(Elémentaire,E60)=1,listes!$U$1,IF(COUNTIF(Collège,E60)=1,listes!$V$1,IF(COUNTIF(Lycée,E60)=1,listes!$W$1,\"\"))))","v":""},{"$f":"VLOOKUP(T_sept_dec[[#This Row],[Etablissement scolaire]],Regroupements!$T:$U,2,FALSE)","v":{"$error":"#N/A"}},""]
[null,null,null,null,null,null,null,null,null,null,null,{"$f":"IF(COUNTIF(Maternelle,E61)=1,listes!$T$1,IF(COUNTIF(Elémentaire,E61)=1,listes!$U$1,IF(COUNTIF(Collège,E61)=1,listes!$V$1,IF(COUNTIF(Lycée,E61)=1,listes!$W$1,\"\"))))","v":""},{"$f":"VLOOKUP(T_sept_dec[[#This Row],[Etablissement scolaire]],Regroupements!$T:$U,2,FALSE)","v":{"$error":"#N/A"}},""]
[null,null,null,null,null,null,null,null,null,null,null,{"$f":"IF(COUNTIF(Maternelle,E62)=1,listes!$T$1,IF(COUNTIF(Elémentaire,E62)=1,listes!$U$1,IF(COUNTIF(Collège,E62)=1,listes!$V$1,IF(COUNTIF(Lycée,E62)=1,listes!$W$1,\"\"))))","v":""},{"$f":"VLOOKUP(T_sept_dec[[#This Row],[Etablissement scolaire]],Regroupements!$T:$U,2,FALSE)","v":{"$error":"#N/A"}},""]
[null,null,null,null,null,null,null,null,null,null,null,{"$f":"IF(COUNTIF(Maternelle,E63)=1,listes!$T$1,IF(COUNTIF(Elémentaire,E63)=1,listes!$U$1,IF(COUNTIF(Collège,E63)=1,listes!$V$1,IF(COUNTIF(Lycée,E63)=1,listes!$W$1,\"\"))))","v":""},{"$f":"VLOOKUP(T_sept_dec[[#This Row],[Etablissement scolaire]],Regroupements!$T:$U,2,FALSE)","v":{"$error":"#N/A"}},""]
[null,null,null,null,null,null,null,null,null,null,null,{"$f":"IF(COUNTIF(Maternelle,E64)=1,listes!$T$1,IF(COUNTIF(Elémentaire,E64)=1,listes!$U$1,IF(COUNTIF(Collège,E64)=1,listes!$V$1,IF(COUNTIF(Lycée,E64)=1,listes!$W$1,\"\"))))","v":""},{"$f":"VLOOKUP(T_sept_dec[[#This Row],[Etablissement scolaire]],Regroupements!$T:$U,2,FALSE)","v":{"$error":"#N/A"}},""]
[null,null,null,null,null,null,null,null,null,null,null,{"$f":"IF(COUNTIF(Maternelle,E65)=1,listes!$T$1,IF(COUNTIF(Elémentaire,E65)=1,listes!$U$1,IF(COUNTIF(Collège,E65)=1,listes!$V$1,IF(COUNTIF(Lycée,E65)=1,listes!$W$1,\"\"))))","v":""},{"$f":"VLOOKUP(T_sept_dec[[#This Row],[Etablissement scolaire]],Regroupements!$T:$U,2,FALSE)","v":{"$error":"#N/A"}},""]
[null,null,null,null,null,null,null,null,null,null,null,{"$f":"IF(COUNTIF(Maternelle,E66)=1,listes!$T$1,IF(COUNTIF(Elémentaire,E66)=1,listes!$U$1,IF(COUNTIF(Collège,E66)=1,listes!$V$1,IF(COUNTIF(Lycée,E66)=1,listes!$W$1,\"\"))))","v":""},{"$f":"VLOOKUP(T_sept_dec[[#This Row],[Etablissement scolaire]],Regroupements!$T:$U,2,FALSE)","v":{"$error":"#N/A"}},{"$f":"IF(COUNTIF(FDL,B66)=1,\"FDL\",IF(COUNTIF(RIZE,B66)=1,\"RIZE\",IF(COUNTIF(MLIS,B66)=1,\"MLIS\",IF(COUNTIF(PACBUS,B66)=1,\"PAC-BUS\",IF(COUNTIF(Tonkin,B66)=1,\"TONKIN\",\"\")))))","v":""}]
[null,null,null,null,null,null,null,null,null,null,null,{"$f":"IF(COUNTIF(Maternelle,E67)=1,listes!$T$1,IF(COUNTIF(Elémentaire,E67)=1,listes!$U$1,IF(COUNTIF(Collège,E67)=1,listes!$V$1,IF(COUNTIF(Lycée,E67)=1,listes!$W$1,\"\"))))","v":""},{"$f":"VLOOKUP(T_sept_dec[[#This Row],[Etablissement scolaire]],Regroupements!$T:$U,2,FALSE)","v":{"$error":"#N/A"}},""]
[null,null,null,null,null,null,null,null,null,null,null,{"$f":"IF(COUNTIF(Maternelle,E68)=1,listes!$T$1,IF(COUNTIF(Elémentaire,E68)=1,listes!$U$1,IF(COUNTIF(Collège,E68)=1,listes!$V$1,IF(COUNTIF(Lycée,E68)=1,listes!$W$1,\"\"))))","v":""},{"$f":"VLOOKUP(T_sept_dec[[#This Row],[Etablissement scolaire]],Regroupements!$T:$U,2,FALSE)","v":{"$error":"#N/A"}},""]
[null,null,null,null,null,null,null,null,null,null,null,{"$f":"IF(COUNTIF(Maternelle,E69)=1,listes!$T$1,IF(COUNTIF(Elémentaire,E69)=1,listes!$U$1,IF(COUNTIF(Collège,E69)=1,listes!$V$1,IF(COUNTIF(Lycée,E69)=1,listes!$W$1,\"\"))))","v":""},{"$f":"VLOOKUP(T_sept_dec[[#This Row],[Etablissement scolaire]],Regroupements!$T:$U,2,FALSE)","v":{"$error":"#N/A"}},""]
[null,null,null,null,null,null,null,null,null,null,null,{"$f":"IF(COUNTIF(Maternelle,E70)=1,listes!$T$1,IF(COUNTIF(Elémentaire,E70)=1,listes!$U$1,IF(COUNTIF(Collège,E70)=1,listes!$V$1,IF(COUNTIF(Lycée,E70)=1,listes!$W$1,\"\"))))","v":""},{"$f":"VLOOKUP(T_sept_dec[[#This Row],[Etablissement scolaire]],Regroupements!$T:$U,2,FALSE)","v":{"$error":"#N/A"}},""]
[null,null,null,null,null,null,null,null,null,null,null,{"$f":"IF(COUNTIF(Maternelle,E71)=1,listes!$T$1,IF(COUNTIF(Elémentaire,E71)=1,listes!$U$1,IF(COUNTIF(Collège,E71)=1,listes!$V$1,IF(COUNTIF(Lycée,E71)=1,listes!$W$1,\"\"))))","v":""},{"$f":"VLOOKUP(T_sept_dec[[#This Row],[Etablissement scolaire]],Regroupements!$T:$U,2,FALSE)","v":{"$error":"#N/A"}},""]
[null,null,null,null,null,null,null,null,null,null,null,{"$f":"IF(COUNTIF(Maternelle,E72)=1,listes!$T$1,IF(COUNTIF(Elémentaire,E72)=1,listes!$U$1,IF(COUNTIF(Collège,E72)=1,listes!$V$1,IF(COUNTIF(Lycée,E72)=1,listes!$W$1,\"\"))))","v":""},{"$f":"VLOOKUP(T_sept_dec[[#This Row],[Etablissement scolaire]],Regroupements!$T:$U,2,FALSE)","v":{"$error":"#N/A"}},""]
[null,null,null,null,null,null,null,null,null,null,null,{"$f":"IF(COUNTIF(Maternelle,E73)=1,listes!$T$1,IF(COUNTIF(Elémentaire,E73)=1,listes!$U$1,IF(COUNTIF(Collège,E73)=1,listes!$V$1,IF(COUNTIF(Lycée,E73)=1,listes!$W$1,\"\"))))","v":""},{"$f":"VLOOKUP(T_sept_dec[[#This Row],[Etablissement scolaire]],Regroupements!$T:$U,2,FALSE)","v":{"$error":"#N/A"}},""]
[null,null,null,null,null,null,null,null,null,null,null,{"$f":"IF(COUNTIF(Maternelle,E74)=1,listes!$T$1,IF(COUNTIF(Elémentaire,E74)=1,listes!$U$1,IF(COUNTIF(Collège,E74)=1,listes!$V$1,IF(COUNTIF(Lycée,E74)=1,listes!$W$1,\"\"))))","v":""},{"$f":"VLOOKUP(T_sept_dec[[#This Row],[Etablissement scolaire]],Regroupements!$T:$U,2,FALSE)","v":{"$error":"#N/A"}},""]
[null,null,null,null,null,null,null,null,null,null,null,{"$f":"IF(COUNTIF(Maternelle,E75)=1,listes!$T$1,IF(COUNTIF(Elémentaire,E75)=1,listes!$U$1,IF(COUNTIF(Collège,E75)=1,listes!$V$1,IF(COUNTIF(Lycée,E75)=1,listes!$W$1,\"\"))))","v":""},{"$f":"VLOOKUP(T_sept_dec[[#This Row],[Etablissement scolaire]],Regroupements!$T:$U,2,FALSE)","v":{"$error":"#N/A"}},""]
[null,null,null,null,null,null,null,null,null,null,null,{"$f":"IF(COUNTIF(Maternelle,E76)=1,listes!$T$1,IF(COUNTIF(Elémentaire,E76)=1,listes!$U$1,IF(COUNTIF(Collège,E76)=1,listes!$V$1,IF(COUNTIF(Lycée,E76)=1,listes!$W$1,\"\"))))","v":""},{"$f":"VLOOKUP(T_sept_dec[[#This Row],[Etablissement scolaire]],Regroupements!$T:$U,2,FALSE)","v":{"$error":"#N/A"}},""]
[null,null,null,null,null,null,null,null,null,null,null,{"$f":"IF(COUNTIF(Maternelle,E77)=1,listes!$T$1,IF(COUNTIF(Elémentaire,E77)=1,listes!$U$1,IF(COUNTIF(Collège,E77)=1,listes!$V$1,IF(COUNTIF(Lycée,E77)=1,listes!$W$1,\"\"))))","v":""},{"$f":"VLOOKUP(T_sept_dec[[#This Row],[Etablissement scolaire]],Regroupements!$T:$U,2,FALSE)","v":{"$error":"#N/A"}},""]
[null,null,null,null,null,null,null,null,null,null,null,{"$f":"IF(COUNTIF(Maternelle,E78)=1,listes!$T$1,IF(COUNTIF(Elémentaire,E78)=1,listes!$U$1,IF(COUNTIF(Collège,E78)=1,listes!$V$1,IF(COUNTIF(Lycée,E78)=1,listes!$W$1,\"\"))))","v":""},{"$f":"VLOOKUP(T_sept_dec[[#This Row],[Etablissement scolaire]],Regroupements!$T:$U,2,FALSE)","v":{"$error":"#N/A"}},""]
[null,null,null,null,null,null,null,null,null,null,null,{"$f":"IF(COUNTIF(Maternelle,E79)=1,listes!$T$1,IF(COUNTIF(Elémentaire,E79)=1,listes!$U$1,IF(COUNTIF(Collège,E79)=1,listes!$V$1,IF(COUNTIF(Lycée,E79)=1,listes!$W$1,\"\"))))","v":""},{"$f":"VLOOKUP(T_sept_dec[[#This Row],[Etablissement scolaire]],Regroupements!$T:$U,2,FALSE)","v":{"$error":"#N/A"}},""]
[null,null,null,null,null,null,null,null,null,null,null,{"$f":"IF(COUNTIF(Maternelle,E80)=1,listes!$T$1,IF(COUNTIF(Elémentaire,E80)=1,listes!$U$1,IF(COUNTIF(Collège,E80)=1,listes!$V$1,IF(COUNTIF(Lycée,E80)=1,listes!$W$1,\"\"))))","v":""},{"$f":"VLOOKUP(T_sept_dec[[#This Row],[Etablissement scolaire]],Regroupements!$T:$U,2,FALSE)","v":{"$error":"#N/A"}},""]
[null,null,null,null,null,null,null,null,null,null,null,{"$f":"IF(COUNTIF(Maternelle,E81)=1,listes!$T$1,IF(COUNTIF(Elémentaire,E81)=1,listes!$U$1,IF(COUNTIF(Collège,E81)=1,listes!$V$1,IF(COUNTIF(Lycée,E81)=1,listes!$W$1,\"\"))))","v":""},{"$f":"VLOOKUP(T_sept_dec[[#This Row],[Etablissement scolaire]],Regroupements!$T:$U,2,FALSE)","v":{"$error":"#N/A"}},""]
[null,null,null,null,null,null,null,null,null,null,null,{"$f":"IF(COUNTIF(Maternelle,E82)=1,listes!$T$1,IF(COUNTIF(Elémentaire,E82)=1,listes!$U$1,IF(COUNTIF(Collège,E82)=1,listes!$V$1,IF(COUNTIF(Lycée,E82)=1,listes!$W$1,\"\"))))","v":""},{"$f":"VLOOKUP(T_sept_dec[[#This Row],[Etablissement scolaire]],Regroupements!$T:$U,2,FALSE)","v":{"$error":"#N/A"}},""]
[null,null,null,null,null,null,null,null,null,null,null,{"$f":"IF(COUNTIF(Maternelle,E83)=1,listes!$T$1,IF(COUNTIF(Elémentaire,E83)=1,listes!$U$1,IF(COUNTIF(Collège,E83)=1,listes!$V$1,IF(COUNTIF(Lycée,E83)=1,listes!$W$1,\"\"))))","v":""},{"$f":"VLOOKUP(T_sept_dec[[#This Row],[Etablissement scolaire]],Regroupements!$T:$U,2,FALSE)","v":{"$error":"#N/A"}},""]
[null,null,null,null,null,null,null,null,null,null,null,{"$f":"IF(COUNTIF(Maternelle,E84)=1,listes!$T$1,IF(COUNTIF(Elémentaire,E84)=1,listes!$U$1,IF(COUNTIF(Collège,E84)=1,listes!$V$1,IF(COUNTIF(Lycée,E84)=1,listes!$W$1,\"\"))))","v":""},{"$f":"VLOOKUP(T_sept_dec[[#This Row],[Etablissement scolaire]],Regroupements!$T:$U,2,FALSE)","v":{"$error":"#N/A"}},""]
[null,null,null,null,null,null,null,null,null,null,null,{"$f":"IF(COUNTIF(Maternelle,E85)=1,listes!$T$1,IF(COUNTIF(Elémentaire,E85)=1,listes!$U$1,IF(COUNTIF(Collège,E85)=1,listes!$V$1,IF(COUNTIF(Lycée,E85)=1,listes!$W$1,\"\"))))","v":""},{"$f":"VLOOKUP(T_sept_dec[[#This Row],[Etablissement scolaire]],Regroupements!$T:$U,2,FALSE)","v":{"$error":"#N/A"}},""]
[null,null,null,null,null,null,null,null,null,null,null,{"$f":"IF(COUNTIF(Maternelle,E86)=1,listes!$T$1,IF(COUNTIF(Elémentaire,E86)=1,listes!$U$1,IF(COUNTIF(Collège,E86)=1,listes!$V$1,IF(COUNTIF(Lycée,E86)=1,listes!$W$1,\"\"))))","v":""},{"$f":"VLOOKUP(T_sept_dec[[#This Row],[Etablissement scolaire]],Regroupements!$T:$U,2,FALSE)","v":{"$error":"#N/A"}},""]
[null,null,null,null,null,null,null,null,null,null,null,{"$f":"IF(COUNTIF(Maternelle,E87)=1,listes!$T$1,IF(COUNTIF(Elémentaire,E87)=1,listes!$U$1,IF(COUNTIF(Collège,E87)=1,listes!$V$1,IF(COUNTIF(Lycée,E87)=1,listes!$W$1,\"\"))))","v":""},{"$f":"VLOOKUP(T_sept_dec[[#This Row],[Etablissement scolaire]],Regroupements!$T:$U,2,FALSE)","v":{"$error":"#N/A"}},""]
[null,null,null,null,null,null,null,null,null,null,null,{"$f":"IF(COUNTIF(Maternelle,E88)=1,listes!$T$1,IF(COUNTIF(Elémentaire,E88)=1,listes!$U$1,IF(COUNTIF(Collège,E88)=1,listes!$V$1,IF(COUNTIF(Lycée,E88)=1,listes!$W$1,\"\"))))","v":""},{"$f":"VLOOKUP(T_sept_dec[[#This Row],[Etablissement scolaire]],Regroupements!$T:$U,2,FALSE)","v":{"$error":"#N/A"}},""]
[null,null,null,null,null,null,null,null,null,null,null,{"$f":"IF(COUNTIF(Maternelle,E89)=1,listes!$T$1,IF(COUNTIF(Elémentaire,E89)=1,listes!$U$1,IF(COUNTIF(Collège,E89)=1,listes!$V$1,IF(COUNTIF(Lycée,E89)=1,listes!$W$1,\"\"))))","v":""},{"$f":"VLOOKUP(T_sept_dec[[#This Row],[Etablissement scolaire]],Regroupements!$T:$U,2,FALSE)","v":{"$error":"#N/A"}},""]
[null,null,null,null,null,null,null,null,null,null,null,{"$f":"IF(COUNTIF(Maternelle,E90)=1,listes!$T$1,IF(COUNTIF(Elémentaire,E90)=1,listes!$U$1,IF(COUNTIF(Collège,E90)=1,listes!$V$1,IF(COUNTIF(Lycée,E90)=1,listes!$W$1,\"\"))))","v":""},{"$f":"VLOOKUP(T_sept_dec[[#This Row],[Etablissement scolaire]],Regroupements!$T:$U,2,FALSE)","v":{"$error":"#N/A"}},""]
[null,null,null,null,null,null,null,null,null,null,null,{"$f":"IF(COUNTIF(Maternelle,E91)=1,listes!$T$1,IF(COUNTIF(Elémentaire,E91)=1,listes!$U$1,IF(COUNTIF(Collège,E91)=1,listes!$V$1,IF(COUNTIF(Lycée,E91)=1,listes!$W$1,\"\"))))","v":""},{"$f":"VLOOKUP(T_sept_dec[[#This Row],[Etablissement scolaire]],Regroupements!$T:$U,2,FALSE)","v":{"$error":"#N/A"}},""]
[null,null,null,null,null,null,null,null,null,null,null,{"$f":"IF(COUNTIF(Maternelle,E92)=1,listes!$T$1,IF(COUNTIF(Elémentaire,E92)=1,listes!$U$1,IF(COUNTIF(Collège,E92)=1,listes!$V$1,IF(COUNTIF(Lycée,E92)=1,listes!$W$1,\"\"))))","v":""},{"$f":"VLOOKUP(T_sept_dec[[#This Row],[Etablissement scolaire]],Regroupements!$T:$U,2,FALSE)","v":{"$error":"#N/A"}},""]
[null,null,null,null,null,null,null,null,null,null,null,{"$f":"IF(COUNTIF(Maternelle,E93)=1,listes!$T$1,IF(COUNTIF(Elémentaire,E93)=1,listes!$U$1,IF(COUNTIF(Collège,E93)=1,listes!$V$1,IF(COUNTIF(Lycée,E93)=1,listes!$W$1,\"\"))))","v":""},{"$f":"VLOOKUP(T_sept_dec[[#This Row],[Etablissement scolaire]],Regroupements!$T:$U,2,FALSE)","v":{"$error":"#N/A"}},""]
[null,null,null,null,null,null,null,null,null,null,null,{"$f":"IF(COUNTIF(Maternelle,E94)=1,listes!$T$1,IF(COUNTIF(Elémentaire,E94)=1,listes!$U$1,IF(COUNTIF(Collège,E94)=1,listes!$V$1,IF(COUNTIF(Lycée,E94)=1,listes!$W$1,\"\"))))","v":""},{"$f":"VLOOKUP(T_sept_dec[[#This Row],[Etablissement scolaire]],Regroupements!$T:$U,2,FALSE)","v":{"$error":"#N/A"}},""]
[null,null,null,null,null,null,null,null,null,null,null,{"$f":"IF(COUNTIF(Maternelle,E95)=1,listes!$T$1,IF(COUNTIF(Elémentaire,E95)=1,listes!$U$1,IF(COUNTIF(Collège,E95)=1,listes!$V$1,IF(COUNTIF(Lycée,E95)=1,listes!$W$1,\"\"))))","v":""},{"$f":"VLOOKUP(T_sept_dec[[#This Row],[Etablissement scolaire]],Regroupements!$T:$U,2,FALSE)","v":{"$error":"#N/A"}},""]
[null,null,null,null,null,null,null,null,null,null,null,{"$f":"IF(COUNTIF(Maternelle,E96)=1,listes!$T$1,IF(COUNTIF(Elémentaire,E96)=1,listes!$U$1,IF(COUNTIF(Collège,E96)=1,listes!$V$1,IF(COUNTIF(Lycée,E96)=1,listes!$W$1,\"\"))))","v":""},{"$f":"VLOOKUP(T_sept_dec[[#This Row],[Etablissement scolaire]],Regroupements!$T:$U,2,FALSE)","v":{"$error":"#N/A"}},""]
[null,null,null,null,null,null,null,null,null,null,null,{"$f":"IF(COUNTIF(Maternelle,E97)=1,listes!$T$1,IF(COUNTIF(Elémentaire,E97)=1,listes!$U$1,IF(COUNTIF(Collège,E97)=1,listes!$V$1,IF(COUNTIF(Lycée,E97)=1,listes!$W$1,\"\"))))","v":""},{"$f":"VLOOKUP(T_sept_dec[[#This Row],[Etablissement scolaire]],Regroupements!$T:$U,2,FALSE)","v":{"$error":"#N/A"}},""]
[null,null,null,null,null,null,null,null,null,null,null,{"$f":"IF(COUNTIF(Maternelle,E98)=1,listes!$T$1,IF(COUNTIF(Elémentaire,E98)=1,listes!$U$1,IF(COUNTIF(Collège,E98)=1,listes!$V$1,IF(COUNTIF(Lycée,E98)=1,listes!$W$1,\"\"))))","v":""},{"$f":"VLOOKUP(T_sept_dec[[#This Row],[Etablissement scolaire]],Regroupements!$T:$U,2,FALSE)","v":{"$error":"#N/A"}},{"$f":"IF(COUNTIF(FDL,B98)=1,\"FDL\",IF(COUNTIF(RIZE,B98)=1,\"RIZE\",IF(COUNTIF(MLIS,B98)=1,\"MLIS\",IF(COUNTIF(PACBUS,B98)=1,\"PAC-BUS\",IF(COUNTIF(Tonkin,B98)=1,\"TONKIN\",\"\")))))","v":""}]
[null,null,null,null,null,null,null,null,null,null,null,{"$f":"IF(COUNTIF(Maternelle,E99)=1,listes!$T$1,IF(COUNTIF(Elémentaire,E99)=1,listes!$U$1,IF(COUNTIF(Collège,E99)=1,listes!$V$1,IF(COUNTIF(Lycée,E99)=1,listes!$W$1,\"\"))))","v":""},{"$f":"VLOOKUP(T_sept_dec[[#This Row],[Etablissement scolaire]],Regroupements!$T:$U,2,FALSE)","v":{"$error":"#N/A"}},""]
[null,null,null,null,null,null,null,null,null,null,null,{"$f":"IF(COUNTIF(Maternelle,E100)=1,listes!$T$1,IF(COUNTIF(Elémentaire,E100)=1,listes!$U$1,IF(COUNTIF(Collège,E100)=1,listes!$V$1,IF(COUNTIF(Lycée,E100)=1,listes!$W$1,\"\"))))","v":""},{"$f":"VLOOKUP(T_sept_dec[[#This Row],[Etablissement scolaire]],Regroupements!$T:$U,2,FALSE)","v":{"$error":"#N/A"}},""]
[null,null,null,null,null,null,null,null,null,null,null,{"$f":"IF(COUNTIF(Maternelle,E101)=1,listes!$T$1,IF(COUNTIF(Elémentaire,E101)=1,listes!$U$1,IF(COUNTIF(Collège,E101)=1,listes!$V$1,IF(COUNTIF(Lycée,E101)=1,listes!$W$1,\"\"))))","v":""},{"$f":"VLOOKUP(T_sept_dec[[#This Row],[Etablissement scolaire]],Regroupements!$T:$U,2,FALSE)","v":{"$error":"#N/A"}},""]
[null,null,null,null,null,null,null,null,null,null,null,{"$f":"IF(COUNTIF(Maternelle,E102)=1,listes!$T$1,IF(COUNTIF(Elémentaire,E102)=1,listes!$U$1,IF(COUNTIF(Collège,E102)=1,listes!$V$1,IF(COUNTIF(Lycée,E102)=1,listes!$W$1,\"\"))))","v":""},{"$f":"VLOOKUP(T_sept_dec[[#This Row],[Etablissement scolaire]],Regroupements!$T:$U,2,FALSE)","v":{"$error":"#N/A"}},""]
[null,null,null,null,null,null,null,null,null,null,null,{"$f":"IF(COUNTIF(Maternelle,E103)=1,listes!$T$1,IF(COUNTIF(Elémentaire,E103)=1,listes!$U$1,IF(COUNTIF(Collège,E103)=1,listes!$V$1,IF(COUNTIF(Lycée,E103)=1,listes!$W$1,\"\"))))","v":""},{"$f":"VLOOKUP(T_sept_dec[[#This Row],[Etablissement scolaire]],Regroupements!$T:$U,2,FALSE)","v":{"$error":"#N/A"}},""]
[null,null,null,null,null,null,null,null,null,null,null,{"$f":"IF(COUNTIF(Maternelle,E104)=1,listes!$T$1,IF(COUNTIF(Elémentaire,E104)=1,listes!$U$1,IF(COUNTIF(Collège,E104)=1,listes!$V$1,IF(COUNTIF(Lycée,E104)=1,listes!$W$1,\"\"))))","v":""},{"$f":"VLOOKUP(T_sept_dec[[#This Row],[Etablissement scolaire]],Regroupements!$T:$U,2,FALSE)","v":{"$error":"#N/A"}},""]
[null,null,null,null,null,null,null,null,null,null,null,{"$f":"IF(COUNTIF(Maternelle,E105)=1,listes!$T$1,IF(COUNTIF(Elémentaire,E105)=1,listes!$U$1,IF(COUNTIF(Collège,E105)=1,listes!$V$1,IF(COUNTIF(Lycée,E105)=1,listes!$W$1,\"\"))))","v":""},{"$f":"VLOOKUP(T_sept_dec[[#This Row],[Etablissement scolaire]],Regroupements!$T:$U,2,FALSE)","v":{"$error":"#N/A"}},""]
[null,null,null,null,null,null,null,null,null,null,null,{"$f":"IF(COUNTIF(Maternelle,E106)=1,listes!$T$1,IF(COUNTIF(Elémentaire,E106)=1,listes!$U$1,IF(COUNTIF(Collège,E106)=1,listes!$V$1,IF(COUNTIF(Lycée,E106)=1,listes!$W$1,\"\"))))","v":""},{"$f":"VLOOKUP(T_sept_dec[[#This Row],[Etablissement scolaire]],Regroupements!$T:$U,2,FALSE)","v":{"$error":"#N/A"}},""]
[null,null,null,null,null,null,null,null,null,null,null,{"$f":"IF(COUNTIF(Maternelle,E107)=1,listes!$T$1,IF(COUNTIF(Elémentaire,E107)=1,listes!$U$1,IF(COUNTIF(Collège,E107)=1,listes!$V$1,IF(COUNTIF(Lycée,E107)=1,listes!$W$1,\"\"))))","v":""},{"$f":"VLOOKUP(T_sept_dec[[#This Row],[Etablissement scolaire]],Regroupements!$T:$U,2,FALSE)","v":{"$error":"#N/A"}},""]
[null,null,null,null,null,null,null,null,null,null,null,{"$f":"IF(COUNTIF(Maternelle,E108)=1,listes!$T$1,IF(COUNTIF(Elémentaire,E108)=1,listes!$U$1,IF(COUNTIF(Collège,E108)=1,listes!$V$1,IF(COUNTIF(Lycée,E108)=1,listes!$W$1,\"\"))))","v":""},{"$f":"VLOOKUP(T_sept_dec[[#This Row],[Etablissement scolaire]],Regroupements!$T:$U,2,FALSE)","v":{"$error":"#N/A"}},""]
[null,null,null,null,null,null,null,null,null,null,null,{"$f":"IF(COUNTIF(Maternelle,E109)=1,listes!$T$1,IF(COUNTIF(Elémentaire,E109)=1,listes!$U$1,IF(COUNTIF(Collège,E109)=1,listes!$V$1,IF(COUNTIF(Lycée,E109)=1,listes!$W$1,\"\"))))","v":""},{"$f":"VLOOKUP(T_sept_dec[[#This Row],[Etablissement scolaire]],Regroupements!$T:$U,2,FALSE)","v":{"$error":"#N/A"}},""]
[null,null,null,null,null,null,null,null,null,null,null,{"$f":"IF(COUNTIF(Maternelle,E110)=1,listes!$T$1,IF(COUNTIF(Elémentaire,E110)=1,listes!$U$1,IF(COUNTIF(Collège,E110)=1,listes!$V$1,IF(COUNTIF(Lycée,E110)=1,listes!$W$1,\"\"))))","v":""},{"$f":"VLOOKUP(T_sept_dec[[#This Row],[Etablissement scolaire]],Regroupements!$T:$U,2,FALSE)","v":{"$error":"#N/A"}},""]
[null,null,null,null,null,null,null,null,null,null,null,{"$f":"IF(COUNTIF(Maternelle,E111)=1,listes!$T$1,IF(COUNTIF(Elémentaire,E111)=1,listes!$U$1,IF(COUNTIF(Collège,E111)=1,listes!$V$1,IF(COUNTIF(Lycée,E111)=1,listes!$W$1,\"\"))))","v":""},{"$f":"VLOOKUP(T_sept_dec[[#This Row],[Etablissement scolaire]],Regroupements!$T:$U,2,FALSE)","v":{"$error":"#N/A"}},""]
[null,null,null,null,null,null,null,null,null,null,null,{"$f":"IF(COUNTIF(Maternelle,E112)=1,listes!$T$1,IF(COUNTIF(Elémentaire,E112)=1,listes!$U$1,IF(COUNTIF(Collège,E112)=1,listes!$V$1,IF(COUNTIF(Lycée,E112)=1,listes!$W$1,\"\"))))","v":""},{"$f":"VLOOKUP(T_sept_dec[[#This Row],[Etablissement scolaire]],Regroupements!$T:$U,2,FALSE)","v":{"$error":"#N/A"}},""]
[null,null,null,null,null,null,null,null,null,null,null,{"$f":"IF(COUNTIF(Maternelle,E113)=1,listes!$T$1,IF(COUNTIF(Elémentaire,E113)=1,listes!$U$1,IF(COUNTIF(Collège,E113)=1,listes!$V$1,IF(COUNTIF(Lycée,E113)=1,listes!$W$1,\"\"))))","v":""},{"$f":"VLOOKUP(T_sept_dec[[#This Row],[Etablissement scolaire]],Regroupements!$T:$U,2,FALSE)","v":{"$error":"#N/A"}},""]
[null,null,null,null,null,null,null,null,null,null,null,{"$f":"IF(COUNTIF(Maternelle,E114)=1,listes!$T$1,IF(COUNTIF(Elémentaire,E114)=1,listes!$U$1,IF(COUNTIF(Collège,E114)=1,listes!$V$1,IF(COUNTIF(Lycée,E114)=1,listes!$W$1,\"\"))))","v":""},{"$f":"VLOOKUP(T_sept_dec[[#This Row],[Etablissement scolaire]],Regroupements!$T:$U,2,FALSE)","v":{"$error":"#N/A"}},""]
[null,null,null,null,null,null,null,null,null,null,null,{"$f":"IF(COUNTIF(Maternelle,E115)=1,listes!$T$1,IF(COUNTIF(Elémentaire,E115)=1,listes!$U$1,IF(COUNTIF(Collège,E115)=1,listes!$V$1,IF(COUNTIF(Lycée,E115)=1,listes!$W$1,\"\"))))","v":""},{"$f":"VLOOKUP(T_sept_dec[[#This Row],[Etablissement scolaire]],Regroupements!$T:$U,2,FALSE)","v":{"$error":"#N/A"}},""]
[null,null,null,null,null,null,null,null,null,null,null,{"$f":"IF(COUNTIF(Maternelle,E116)=1,listes!$T$1,IF(COUNTIF(Elémentaire,E116)=1,listes!$U$1,IF(COUNTIF(Collège,E116)=1,listes!$V$1,IF(COUNTIF(Lycée,E116)=1,listes!$W$1,\"\"))))","v":""},{"$f":"VLOOKUP(T_sept_dec[[#This Row],[Etablissement scolaire]],Regroupements!$T:$U,2,FALSE)","v":{"$error":"#N/A"}},""]
[null,null,null,null,null,null,null,null,null,null,null,{"$f":"IF(COUNTIF(Maternelle,E117)=1,listes!$T$1,IF(COUNTIF(Elémentaire,E117)=1,listes!$U$1,IF(COUNTIF(Collège,E117)=1,listes!$V$1,IF(COUNTIF(Lycée,E117)=1,listes!$W$1,\"\"))))","v":""},{"$f":"VLOOKUP(T_sept_dec[[#This Row],[Etablissement scolaire]],Regroupements!$T:$U,2,FALSE)","v":{"$error":"#N/A"}},""]
[null,null,null,null,null,null,null,null,null,null,null,{"$f":"IF(COUNTIF(Maternelle,E118)=1,listes!$T$1,IF(COUNTIF(Elémentaire,E118)=1,listes!$U$1,IF(COUNTIF(Collège,E118)=1,listes!$V$1,IF(COUNTIF(Lycée,E118)=1,listes!$W$1,\"\"))))","v":""},{"$f":"VLOOKUP(T_sept_dec[[#This Row],[Etablissement scolaire]],Regroupements!$T:$U,2,FALSE)","v":{"$error":"#N/A"}},""]
[null,null,null,null,null,null,null,null,null,null,null,{"$f":"IF(COUNTIF(Maternelle,E119)=1,listes!$T$1,IF(COUNTIF(Elémentaire,E119)=1,listes!$U$1,IF(COUNTIF(Collège,E119)=1,listes!$V$1,IF(COUNTIF(Lycée,E119)=1,listes!$W$1,\"\"))))","v":""},{"$f":"VLOOKUP(T_sept_dec[[#This Row],[Etablissement scolaire]],Regroupements!$T:$U,2,FALSE)","v":{"$error":"#N/A"}},""]
[null,null,null,null,null,null,null,null,null,null,null,{"$f":"IF(COUNTIF(Maternelle,E120)=1,listes!$T$1,IF(COUNTIF(Elémentaire,E120)=1,listes!$U$1,IF(COUNTIF(Collège,E120)=1,listes!$V$1,IF(COUNTIF(Lycée,E120)=1,listes!$W$1,\"\"))))","v":""},{"$f":"VLOOKUP(T_sept_dec[[#This Row],[Etablissement scolaire]],Regroupements!$T:$U,2,FALSE)","v":{"$error":"#N/A"}},""]
[null,null,null,null,null,null,null,null,null,null,null,{"$f":"IF(COUNTIF(Maternelle,E121)=1,listes!$T$1,IF(COUNTIF(Elémentaire,E121)=1,listes!$U$1,IF(COUNTIF(Collège,E121)=1,listes!$V$1,IF(COUNTIF(Lycée,E121)=1,listes!$W$1,\"\"))))","v":""},{"$f":"VLOOKUP(T_sept_dec[[#This Row],[Etablissement scolaire]],Regroupements!$T:$U,2,FALSE)","v":{"$error":"#N/A"}},""]
[null,null,null,null,null,null,null,null,null,null,null,{"$f":"IF(COUNTIF(Maternelle,E122)=1,listes!$T$1,IF(COUNTIF(Elémentaire,E122)=1,listes!$U$1,IF(COUNTIF(Collège,E122)=1,listes!$V$1,IF(COUNTIF(Lycée,E122)=1,listes!$W$1,\"\"))))","v":""},{"$f":"VLOOKUP(T_sept_dec[[#This Row],[Etablissement scolaire]],Regroupements!$T:$U,2,FALSE)","v":{"$error":"#N/A"}},""]
[null,null,null,null,null,null,null,null,null,null,null,{"$f":"IF(COUNTIF(Maternelle,E123)=1,listes!$T$1,IF(COUNTIF(Elémentaire,E123)=1,listes!$U$1,IF(COUNTIF(Collège,E123)=1,listes!$V$1,IF(COUNTIF(Lycée,E123)=1,listes!$W$1,\"\"))))","v":""},{"$f":"VLOOKUP(T_sept_dec[[#This Row],[Etablissement scolaire]],Regroupements!$T:$U,2,FALSE)","v":{"$error":"#N/A"}},""]
[null,null,null,null,null,null,null,null,null,null,null,{"$f":"IF(COUNTIF(Maternelle,E124)=1,listes!$T$1,IF(COUNTIF(Elémentaire,E124)=1,listes!$U$1,IF(COUNTIF(Collège,E124)=1,listes!$V$1,IF(COUNTIF(Lycée,E124)=1,listes!$W$1,\"\"))))","v":""},{"$f":"VLOOKUP(T_sept_dec[[#This Row],[Etablissement scolaire]],Regroupements!$T:$U,2,FALSE)","v":{"$error":"#N/A"}},""]
[null,null,null,null,null,null,null,null,null,null,null,{"$f":"IF(COUNTIF(Maternelle,E125)=1,listes!$T$1,IF(COUNTIF(Elémentaire,E125)=1,listes!$U$1,IF(COUNTIF(Collège,E125)=1,listes!$V$1,IF(COUNTIF(Lycée,E125)=1,listes!$W$1,\"\"))))","v":""},{"$f":"VLOOKUP(T_sept_dec[[#This Row],[Etablissement scolaire]],Regroupements!$T:$U,2,FALSE)","v":{"$error":"#N/A"}},""]
[null,null,null,null,null,null,null,null,null,null,null,{"$f":"IF(COUNTIF(Maternelle,E126)=1,listes!$T$1,IF(COUNTIF(Elémentaire,E126)=1,listes!$U$1,IF(COUNTIF(Collège,E126)=1,listes!$V$1,IF(COUNTIF(Lycée,E126)=1,listes!$W$1,\"\"))))","v":""},{"$f":"VLOOKUP(T_sept_dec[[#This Row],[Etablissement scolaire]],Regroupements!$T:$U,2,FALSE)","v":{"$error":"#N/A"}},""]
[null,null,null,null,null,null,null,null,null,null,null,{"$f":"IF(COUNTIF(Maternelle,E127)=1,listes!$T$1,IF(COUNTIF(Elémentaire,E127)=1,listes!$U$1,IF(COUNTIF(Collège,E127)=1,listes!$V$1,IF(COUNTIF(Lycée,E127)=1,listes!$W$1,\"\"))))","v":""},{"$f":"VLOOKUP(T_sept_dec[[#This Row],[Etablissement scolaire]],Regroupements!$T:$U,2,FALSE)","v":{"$error":"#N/A"}},""]
[null,null,null,null,null,null,null,null,null,null,null,{"$f":"IF(COUNTIF(Maternelle,E128)=1,listes!$T$1,IF(COUNTIF(Elémentaire,E128)=1,listes!$U$1,IF(COUNTIF(Collège,E128)=1,listes!$V$1,IF(COUNTIF(Lycée,E128)=1,listes!$W$1,\"\"))))","v":""},{"$f":"VLOOKUP(T_sept_dec[[#This Row],[Etablissement scolaire]],Regroupements!$T:$U,2,FALSE)","v":{"$error":"#N/A"}},""]
[null,null,null,null,null,null,null,null,null,null,null,{"$f":"IF(COUNTIF(Maternelle,E129)=1,listes!$T$1,IF(COUNTIF(Elémentaire,E129)=1,listes!$U$1,IF(COUNTIF(Collège,E129)=1,listes!$V$1,IF(COUNTIF(Lycée,E129)=1,listes!$W$1,\"\"))))","v":""},{"$f":"VLOOKUP(T_sept_dec[[#This Row],[Etablissement scolaire]],Regroupements!$T:$U,2,FALSE)","v":{"$error":"#N/A"}},""]
[null,null,null,null,null,null,null,null,null,null,null,{"$f":"IF(COUNTIF(Maternelle,E130)=1,listes!$T$1,IF(COUNTIF(Elémentaire,E130)=1,listes!$U$1,IF(COUNTIF(Collège,E130)=1,listes!$V$1,IF(COUNTIF(Lycée,E130)=1,listes!$W$1,\"\"))))","v":""},{"$f":"VLOOKUP(T_sept_dec[[#This Row],[Etablissement scolaire]],Regroupements!$T:$U,2,FALSE)","v":{"$error":"#N/A"}},{"$f":"IF(COUNTIF(FDL,B130)=1,\"FDL\",IF(COUNTIF(RIZE,B130)=1,\"RIZE\",IF(COUNTIF(MLIS,B130)=1,\"MLIS\",IF(COUNTIF(PACBUS,B130)=1,\"PAC-BUS\",IF(COUNTIF(Tonkin,B130)=1,\"TONKIN\",\"\")))))","v":""}]
[null,null,null,null,null,null,null,null,null,null,null,{"$f":"IF(COUNTIF(Maternelle,E131)=1,listes!$T$1,IF(COUNTIF(Elémentaire,E131)=1,listes!$U$1,IF(COUNTIF(Collège,E131)=1,listes!$V$1,IF(COUNTIF(Lycée,E131)=1,listes!$W$1,\"\"))))","v":""},{"$f":"VLOOKUP(T_sept_dec[[#This Row],[Etablissement scolaire]],Regroupements!$T:$U,2,FALSE)","v":{"$error":"#N/A"}},""]
[null,null,null,null,null,null,null,null,null,null,null,{"$f":"IF(COUNTIF(Maternelle,E132)=1,listes!$T$1,IF(COUNTIF(Elémentaire,E132)=1,listes!$U$1,IF(COUNTIF(Collège,E132)=1,listes!$V$1,IF(COUNTIF(Lycée,E132)=1,listes!$W$1,\"\"))))","v":""},{"$f":"VLOOKUP(T_sept_dec[[#This Row],[Etablissement scolaire]],Regroupements!$T:$U,2,FALSE)","v":{"$error":"#N/A"}},""]
[null,null,null,null,null,null,null,null,null,null,null,{"$f":"IF(COUNTIF(Maternelle,E133)=1,listes!$T$1,IF(COUNTIF(Elémentaire,E133)=1,listes!$U$1,IF(COUNTIF(Collège,E133)=1,listes!$V$1,IF(COUNTIF(Lycée,E133)=1,listes!$W$1,\"\"))))","v":""},{"$f":"VLOOKUP(T_sept_dec[[#This Row],[Etablissement scolaire]],Regroupements!$T:$U,2,FALSE)","v":{"$error":"#N/A"}},""]
[null,null,null,null,null,null,null,null,null,null,null,{"$f":"IF(COUNTIF(Maternelle,E134)=1,listes!$T$1,IF(COUNTIF(Elémentaire,E134)=1,listes!$U$1,IF(COUNTIF(Collège,E134)=1,listes!$V$1,IF(COUNTIF(Lycée,E134)=1,listes!$W$1,\"\"))))","v":""},{"$f":"VLOOKUP(T_sept_dec[[#This Row],[Etablissement scolaire]],Regroupements!$T:$U,2,FALSE)","v":{"$error":"#N/A"}},""]
[null,null,null,null,null,null,null,null,null,null,null,{"$f":"IF(COUNTIF(Maternelle,E135)=1,listes!$T$1,IF(COUNTIF(Elémentaire,E135)=1,listes!$U$1,IF(COUNTIF(Collège,E135)=1,listes!$V$1,IF(COUNTIF(Lycée,E135)=1,listes!$W$1,\"\"))))","v":""},{"$f":"VLOOKUP(T_sept_dec[[#This Row],[Etablissement scolaire]],Regroupements!$T:$U,2,FALSE)","v":{"$error":"#N/A"}},""]
[null,null,null,null,null,null,null,null,null,null,null,{"$f":"IF(COUNTIF(Maternelle,E136)=1,listes!$T$1,IF(COUNTIF(Elémentaire,E136)=1,listes!$U$1,IF(COUNTIF(Collège,E136)=1,listes!$V$1,IF(COUNTIF(Lycée,E136)=1,listes!$W$1,\"\"))))","v":""},{"$f":"VLOOKUP(T_sept_dec[[#This Row],[Etablissement scolaire]],Regroupements!$T:$U,2,FALSE)","v":{"$error":"#N/A"}},""]
[null,null,null,null,null,null,null,null,null,null,null,{"$f":"IF(COUNTIF(Maternelle,E137)=1,listes!$T$1,IF(COUNTIF(Elémentaire,E137)=1,listes!$U$1,IF(COUNTIF(Collège,E137)=1,listes!$V$1,IF(COUNTIF(Lycée,E137)=1,listes!$W$1,\"\"))))","v":""},{"$f":"VLOOKUP(T_sept_dec[[#This Row],[Etablissement scolaire]],Regroupements!$T:$U,2,FALSE)","v":{"$error":"#N/A"}},""]
[null,null,null,null,null,null,null,null,null,null,null,{"$f":"IF(COUNTIF(Maternelle,E138)=1,listes!$T$1,IF(COUNTIF(Elémentaire,E138)=1,listes!$U$1,IF(COUNTIF(Collège,E138)=1,listes!$V$1,IF(COUNTIF(Lycée,E138)=1,listes!$W$1,\"\"))))","v":""},{"$f":"VLOOKUP(T_sept_dec[[#This Row],[Etablissement scolaire]],Regroupements!$T:$U,2,FALSE)","v":{"$error":"#N/A"}},""]
[null,null,null,null,null,null,null,null,null,null,null,{"$f":"IF(COUNTIF(Maternelle,E139)=1,listes!$T$1,IF(COUNTIF(Elémentaire,E139)=1,listes!$U$1,IF(COUNTIF(Collège,E139)=1,listes!$V$1,IF(COUNTIF(Lycée,E139)=1,listes!$W$1,\"\"))))","v":""},{"$f":"VLOOKUP(T_sept_dec[[#This Row],[Etablissement scolaire]],Regroupements!$T:$U,2,FALSE)","v":{"$error":"#N/A"}},""]
[null,null,null,null,null,null,null,null,null,null,null,{"$f":"IF(COUNTIF(Maternelle,E140)=1,listes!$T$1,IF(COUNTIF(Elémentaire,E140)=1,listes!$U$1,IF(COUNTIF(Collège,E140)=1,listes!$V$1,IF(COUNTIF(Lycée,E140)=1,listes!$W$1,\"\"))))","v":""},{"$f":"VLOOKUP(T_sept_dec[[#This Row],[Etablissement scolaire]],Regroupements!$T:$U,2,FALSE)","v":{"$error":"#N/A"}},""]
[null,null,null,null,null,null,null,null,null,null,null,{"$f":"IF(COUNTIF(Maternelle,E141)=1,listes!$T$1,IF(COUNTIF(Elémentaire,E141)=1,listes!$U$1,IF(COUNTIF(Collège,E141)=1,listes!$V$1,IF(COUNTIF(Lycée,E141)=1,listes!$W$1,\"\"))))","v":""},{"$f":"VLOOKUP(T_sept_dec[[#This Row],[Etablissement scolaire]],Regroupements!$T:$U,2,FALSE)","v":{"$error":"#N/A"}},""]
[null,null,null,null,null,null,null,null,null,null,null,{"$f":"IF(COUNTIF(Maternelle,E142)=1,listes!$T$1,IF(COUNTIF(Elémentaire,E142)=1,listes!$U$1,IF(COUNTIF(Collège,E142)=1,listes!$V$1,IF(COUNTIF(Lycée,E142)=1,listes!$W$1,\"\"))))","v":""},{"$f":"VLOOKUP(T_sept_dec[[#This Row],[Etablissement scolaire]],Regroupements!$T:$U,2,FALSE)","v":{"$error":"#N/A"}},""]
[null,null,null,null,null,null,null,null,null,null,null,{"$f":"IF(COUNTIF(Maternelle,E143)=1,listes!$T$1,IF(COUNTIF(Elémentaire,E143)=1,listes!$U$1,IF(COUNTIF(Collège,E143)=1,listes!$V$1,IF(COUNTIF(Lycée,E143)=1,listes!$W$1,\"\"))))","v":""},{"$f":"VLOOKUP(T_sept_dec[[#This Row],[Etablissement scolaire]],Regroupements!$T:$U,2,FALSE)","v":{"$error":"#N/A"}},""]

{"sheet":"tmp","index":2,"n_rows":2,"n_cols":11,"rows_kept":2,"cut":false,"hidden":true,"merged":[]}
["Date venue","Secteur organisateur","Secteur organisateur binôme","Etablissement scolaire","Niveau de classe","Enseignant référent (Nom Prénom)","Nombre enfants","In situ / hors les murs","Type de visite","Appréciations","Commentaires"]
["2018-11-11","MTK",null,"Anatole France","autres (élémentaire)","DEUX",25,"In situ","Autour de la musique"]

{"sheet":"Bilans","index":3,"n_rows":200,"n_cols":22,"rows_kept":200,"cut":false,"hidden":false,"merged":[[68,8,68,10],[51,3,51,4],[79,0,81,0],[97,0,99,0],[52,0,52,7],[51,1,51,2],[70,0,72,0],[73,0,75,0],[66,1,66,2],[66,3,66,4],[68,2,68,4],[68,5,68,7],[54,1,64,1],[67,0,67,21],[68,14,68,18],[68,11,68,13],[68,19,68,21],[91,0,93,0],[94,0,96,0],[82,0,84,0],[112,0,112,1],[103,0,103,1],[104,0,104,1],[105,0,105,1],[109,0,109,1],[110,0,110,1],[106,0,106,1],[111,0,111,1],[107,0,107,1],[108,0,108,1],[101,0,101,3],[117,19,117,21],[17,0,17,7],[33,0,33,7],[47,0,49,0],[19,0,21,0],[22,0,24,0],[25,0,27,0],[35,0,37,0],[38,0,40,0],[28,0,30,0],[41,0,43,0],[44,0,46,0],[113,0,113,1],[76,0,78,0],[85,0,87,0],[88,0,90,0],[117,2,117,4],[117,5,117,7],[117,8,117,10],[117,11,117,13],[117,14,117,18],[170,0,172,0],[173,0,175,0],[119,0,121,0],[122,0,124,0],[125,0,127,0],[128,0,130,0],[131,0,133,0],[155,0,157,0],[158,0,160,0],[161,0,163,0],[164,0,166,0],[167,0,169,0],[191,0,193,0],[194,0,196,0],[197,0,199,0],[116,0,116,19],[176,0,178,0],[179,0,181,0],[182,0,184,0],[185,0,187,0],[188,0,190,0],[134,0,136,0],[137,0,139,0],[140,0,142,0],[143,0,145,0],[146,0,148,0],[149,0,151,0],[152,0,154,0]]}
["Type tableau","pl. Données","pl. Résultats","pl. TitresLig","pl. titresCol","Champ\nLig","Champ\nCol","Champ\nNbEleve","champ \nEnseignant"]
[1,{"$f":"T_sept_dec[]","v":"MLIS J"},{"$f":"C20:G31","v":{"$error":"#VALUE!"}},{"$f":"A20:A31","v":{"$error":"#VALUE!"}},{"$f":"C19:G19","v":"Ecole (Mat+Element)"},"reg_Sect","reg_Niv","Nombre enfants","Enseignant référent (Nom Prénom)"]
[1,{"$f":"T_sept_dec[]","v":"MTK"},{"$f":"C36:G50","v":{"$error":"#VALUE!"}},{"$f":"A36:A50","v":{"$error":"#VALUE!"}},{"$f":"C35:G35","v":"Ecole (Mat+Element)"},"reg_Sect","reg_Niv","Nombre enfants","Enseignant référent (Nom Prénom)"]
[1,{"$f":"T_sept_dec[]","v":"MLIS J"},{"$f":"C71:N100","v":{"$error":"#VALUE!"}},{"$f":"$A$71:$A$100","v":{"$error":"#VALUE!"}},{"$f":"C69:N69","v":0},"reg_Quart","reg_Niv","Nombre enfants","Enseignant référent (Nom Prénom)",null,"!!! 2 tableaux juxtaposés pour Bilan par quartier. Attention pl. titresCol ne sont pas sur la même ligne"]
[1,{"$f":"T_sept_dec[]","v":0},{"$f":"O71:S100","v":{"$error":"#VALUE!"}},{"$f":"$A$71:$A$100","v":{"$error":"#VALUE!"}},{"$f":"O70:S70","v":{"$error":"#VALUE!"}},"reg_Quart","reg_Sect","Nombre enfants","Enseignant référent (Nom Prénom)",null,"!!! 2 tableaux juxtaposés pour Bilan par quartier. Attention pl. titresCol ne sont pas sur la même ligne"]
[1,{"$f":"T_sept_dec[]","v":0},{"$f":"C120:N200","v":{"$error":"#VALUE!"}},{"$f":"$A$120:$A$200","v":{"$error":"#VALUE!"}},{"$f":"C118:N118","v":0},"Etablissement scolaire","reg_Niv","Nombre enfants","Enseignant référent (Nom Prénom)"]
[1,{"$f":"T_sept_dec[]","v":0},{"$f":"O120:S200","v":{"$error":"#VALUE!"}},{"$f":"$A$120:$A$200","v":{"$error":"#VALUE!"}},{"$f":"O119:S119","v":{"$error":"#VALUE!"}},"Etablissement scolaire","reg_Sect","Nombre enfants","Enseignant référent (Nom Prénom)"]
[]
[]
[]
[]
[]
[]
[]
[]
[]
[]
["Bilan global sur l'année scolaire 2018/2019"]
[null,"Nb de","Maternelle","Elémentaire","Ecole (Mat+Element)","Collège","Lycée","Totaux"]
["Réseau des médiathèques","Classes accueillies",2,1,3,null,null,{"$f":"E20+F20+G20","v":3}]
[null,"Enfants accueillis",45,25,70,null,null,{"$f":"E21+F21+G21","v":70}]
[null,"Accueils de classe effectués",2,1,3,null,null,3]
["Accueils menés seulement par le Rize (hors médiathèque)","Classes accueillies",null,null,null,null,null,0]
[null,"Enfants accueillis",null,null,null,null,null,0]
[null,"Accueils de classe effectués",null,null,null,null,null,0]
["FDL","Classes accueillies",null,null,null,null,null,0]
[null,"Enfants accueillis",null,null,null,null,null,0]
[null,"Accueils de classe effectués",null,null,null,null,null,0]
["TOTAL (méd, RIZE, FDL)","Classes accueillies",2,1,3,null,null,3]
[null,"Enfants accueillis",45,25,70,null,null,70]
[null,"Accueils de classe effectués",2,1,3,0,0,3]
[]
[]
["Bilan par établissement sur l'année scolaire"]
[null,"Nb de","Maternelle","Elémentaire","Ecole (Mat+Element)","Collège","Lycée","Totaux"]
["MLIS","Classes accueillies",2,null,2,null,null,{"$f":"E36+F36+G36","v":2}]
[null,"Enfants accueillis",45,null,45,null,null,45]
[null,"Accueils de classe effectués",2,null,2,null,null,2]
["RIZE","Classes accueillies",null,null,null,null,null,0]
[null,"Enfants accueillis",null,null,null,null,null,0]
[null,"Accueils de classe effectués",null,null,null,null,null,0]
["TONKIN","Classes accueillies",null,1,1,null,null,1]
[null,"Enfants accueillis",null,25,25,null,null,{"$f":"E43+F43+G43","v":25}]
[null,"Accueils de classe effectués",null,1,1,null,null,1]
["PAC-BUS","Classes accueillies",null,null,null,null,null,0]
[null,"Enfants accueillis",null,null,null,null,null,0]
[null,"Accueils de classe effectués",null,null,null,null,null,0]
["FDL","Classes accueillies",null,null,null,null,null,0]
[null,"Enfants accueillis",null,null,null,null,null,0]
[null,"Accueils de classe effectués",null,null,null,null,null,0]
[]
[]
["Bilan par secteur sur l'année scolaire"]
[null,null,"Maternelle","Elémentaire","Ecole (Mat+Element)","Collège","Lycée","Totaux"]
["MLIS A","Nombre d'accueils de classe effectués",{"$f":"COUNTIFS(Données!B:B,\"MLIS A\",Données!L:L,\"Maternelle\")+COUNTIFS(Données!C:C,\"MLIS A\",Données!L:L,\"Maternelle\")","v":0},{"$f":"COUNTIFS(Données!B:B,\"MLIS A\",Données!L:L,\"Elémentaire\")+COUNTIFS(Données!C:C,\"MLIS A\",Données!L:L,\"Elémentaire\")","v":0},{"$f":"C55+D55","v":0},{"$f":"COUNTIFS(Données!B:B,\"MLIS A\",Données!L:L,\"Collège\")+COUNTIFS(Données!C:C,\"MLIS A\",Données!L:L,\"Collège\")","v":0},{"$f":"COUNTIFS(Données!B:B,\"MLIS A\",Données!L:L,\"Lycée\")+COUNTIFS(Données!C:C,\"MLIS A\",Données!L:L,\"Lycée\")","v":0},{"$f":"E55+F55+G55","v":0}]
["MLIS DV",null,{"$f":"COUNTIFS(Données!B:B,\"MLIS DV\",Données!L:L,\"Maternelle\")+COUNTIFS(Données!C:C,\"MLIS DV\",Données!L:L,\"Maternelle\")","v":0},{"$f":"COUNTIFS(Données!B:B,\"MLIS DV\",Données!L:L,\"Elémentaire\")+COUNTIFS(Données!C:C,\"MLIS DV\",Données!L:L,\"Elémentaire\")","v":0},{"$f":"C56+D56","v":0},{"$f":"COUNTIFS(Données!B:B,\"MLIS DV\",Données!L:L,\"Collège\")+COUNTIFS(Données!C:C,\"MLIS DV\",Données!L:L,\"Collège\")","v":0},{"$f":"COUNTIFS(Données!B:B,\"MLIS DV\",Données!L:L,\"Lycée\")+COUNTIFS(Données!C:C,\"MLIS DV\",Données!L:L,\"Lycée\")","v":0},{"$f":"E56+F56+G56","v":0}]
["EMM",null,{"$f":"COUNTIFS(Données!B:B,\"EMM\",Données!L:L,\"Maternelle\")+COUNTIFS(Données!C:C,\"EMM\",Données!L:L,\"Maternelle\")","v":0},{"$f":"COUNTIFS(Données!B:B,\"EMM\",Données!L:L,\"Elémentaire\")+COUNTIFS(Données!C:C,\"EMM\",Données!L:L,\"Elémentaire\")","v":0},0,{"$f":"COUNTIFS(Données!B:B,\"EMM\",Données!L:L,\"Collège\")+COUNTIFS(Données!C:C,\"EMM\",Données!L:L,\"Collège\")","v":0},{"$f":"COUNTIFS(Données!B:B,\"EMM\",Données!L:L,\"Lycée\")+COUNTIFS(Données!C:C,\"EMM\",Données!L:L,\"Lycée\")","v":0},0]
["MLIS J",null,{"$f":"COUNTIFS(Données!B:B,\"MLIS J\",Données!L:L,\"Maternelle\")+COUNTIFS(Données!C:C,\"MLIS J\",Données!L:L,\"Maternelle\")","v":2},{"$f":"COUNTIFS(Données!B:B,\"MLIS J\",Données!L:L,\"Elémentaire\")+COUNTIFS(Données!C:C,\"MLIS J\",Données!L:L,\"Elémentaire\")","v":0},2,{"$f":"COUNTIFS(Données!B:B,\"MLIS J\",Données!L:L,\"Collège\")+COUNTIFS(Données!C:C,\"MLIS J\",Données!L:L,\"Collège\")","v":0},{"$f":"COUNTIFS(Données!B:B,\"MLIS J\",Données!L:L,\"Lycée\")+COUNTIFS(Données!C:C,\"MLIS J\",Données!L:L,\"Lycée\")","v":0},2]
["ARTO",null,{"$f":"COUNTIFS(Données!B:B,\"ARTO\",Données!L:L,\"Maternelle\")+COUNTIFS(Données!C:C,\"ARTO\",Données!L:L,\"Maternelle\")","v":0},{"$f":"COUNTIFS(Données!B:B,\"ARTO\",Données!L:L,\"Elémentaire\")+COUNTIFS(Données!C:C,\"ARTO\",Données!L:L,\"Elémentaire\")","v":0},0,{"$f":"COUNTIFS(Données!B:B,\"ARTO\",Données!L:L,\"Collège\")+COUNTIFS(Données!C:C,\"ARTO\",Données!L:L,\"Collège\")","v":0},{"$f":"COUNTIFS(Données!B:B,\"ARTO\",Données!L:L,\"Lycée\")+COUNTIFS(Données!C:C,\"ARTO\",Données!L:L,\"Lycée\")","v":0},0]
["RIZE ARCHI",null,{"$f":"COUNTIFS(Données!B:B,\"RIZE ARCHI\",Données!L:L,\"Maternelle\")+COUNTIFS(Données!C:C,\"RIZE ARCHI\",Données!L:L,\"Maternelle\")","v":0},{"$f":"COUNTIFS(Données!B:B,\"RIZE ARCHI\",Données!L:L,\"Elémentaire\")+COUNTIFS(Données!C:C,\"RIZE ARCHI\",Données!L:L,\"Elémentaire\")","v":0},0,{"$f":"COUNTIFS(Données!B:B,\"RIZE ARCHI\",Données!L:L,\"Collège\")+COUNTIFS(Données!C:C,\"RIZE ARCHI\",Données!L:L,\"Collège\")","v":0},{"$f":"COUNTIFS(Données!B:B,\"RIZE ARCHI\",Données!L:L,\"Lycée\")+COUNTIFS(Données!C:C,\"RIZE ARCHI\",Données!L:L,\"Lycée\")","v":0},0]
["RIZE MED",null,{"$f":"COUNTIFS(Données!B:B,\"RIZE MED\",Données!L:L,\"Maternelle\")","v":0},{"$f":"COUNTIFS(Données!B:B,\"RIZE MED\",Données!L:L,\"Elémentaire\")","v":0},0,{"$f":"COUNTIFS(Données!B:B,\"RIZE MED\",Données!L:L,\"Collège\")","v":0},{"$f":"COUNTIFS(Données!B:B,\"RIZE MED\",Données!L:L,\"Lycée\")","v":0},0]
["RIZE VALO",null,{"$f":"COUNTIFS(Données!B:B,\"RIZE VALO\",Données!L:L,\"Maternelle\")+COUNTIFS(Données!C:C,\"RIZE VALO\",Données!L:L,\"Maternelle\")","v":0},{"$f":"COUNTIFS(Données!B:B,\"RIZE VALO\",Données!L:L,\"Elémentaire\")+COUNTIFS(Données!C:C,\"RIZE VALO\",Données!L:L,\"Elémentaire\")","v":0},0,{"$f":"COUNTIFS(Données!B:B,\"RIZE VALO\",Données!L:L,\"Collège\")+COUNTIFS(Données!C:C,\"RIZE VALO\",Données!L:L,\"Collège\")","v":0},{"$f":"COUNTIFS(Données!B:B,\"RIZE VALO\",Données!L:L,\"Lycée\")+COUNTIFS(Données!C:C,\"RIZE VALO\",Données!L:L,\"Lycée\")","v":0},0]
["TONKIN",null,{"$f":"COUNTIFS(Données!B:B,\"MTK\",Données!L:L,\"Maternelle\")","v":0},{"$f":"COUNTIFS(Données!B:B,\"MTK\",Données!L:L,\"Elémentaire\")","v":1},1,{"$f":"COUNTIFS(Données!B:B,\"MTK\",Données!L:L,\"Collège\")","v":0},{"$f":"COUNTIFS(Données!B:B,\"MTK\",Données!L:L,\"Lycée\")","v":0},1]
["PAC-BUS",null,{"$f":"COUNTIFS(Données!B:B,\"PAC-BUS\",Données!L:L,\"Maternelle\")","v":0},{"$f":"COUNTIFS(Données!B:B,\"PAC-BUS\",Données!L:L,\"Elémentaire\")","v":0},0,{"$f":"COUNTIFS(Données!B:B,\"PAC-BUS\",Données!L:L,\"Collège\")","v":0},{"$f":"COUNTIFS(Données!B:B,\"PAC-BUS\",Données!L:L,\"Lycée\")","v":0},0]
["FDL",null,{"$f":"COUNTIFS(Données!B:B,\"FDL\",Données!L:L,\"Maternelle\")","v":0},{"$f":"COUNTIFS(Données!B:B,\"FDL\",Données!L:L,\"Elémentaire\")","v":0},{"$f":"C65+D65","v":0},{"$f":"COUNTIFS(Données!B:B,\"FDL\",Données!L:L,\"Collège\")","v":0},{"$f":"COUNTIFS(Données!B:B,\"FDL\",Données!L:L,\"Lycée\")","v":0},0]
[]
[]
["Bilan par quartier sur l'année scolaire"]
[null,null,"Maternelle",null,null,"Elémentaire",null,null,"Collège",null,null,"Lycée",null,null,"Accueillie par",null,null,null,null,"Totaux"]
[null,"Nb de","Nb accueilli","Sur","%","Nb accueilli","Sur","%","Nb accueilli","Sur","%","Nb accueilli","Sur","%","FDL","MLIS","RIZE","PAC-BUS","TONKIN","Total","Sur","%"]
["Buers-Croix-Luizet","Classes accueillies",null,27,{"$f":"C71/D71","v":0},null,44,{"$f":"F71/G71","v":0},null,null,null,null,null,null,null,null,null,null,null,{"$f":"C71+F71+I71+L71","v":0},null,{"$f":"T71/U71","v":{"$error":"#DIV/0!"}}]
[null,"Enfants accueillis",null,714,{"$f":"C72/D72","v":0},null,1008,{"$f":"F72/G72","v":0},null,null,null,null,null,null,null,null,null,null,null,{"$f":"C72+F72+I72+L72","v":0},null,{"$f":"T72/U72","v":{"$error":"#DIV/0!"}}]
[null,"Accueils de classe effectués",null,"/","/",null,"/","/",null,null,null,null,null,null,null,null,null,null,null,{"$f":"SUM(O73:S73)","v":0},"/","/"]
["Charpennes-Tonkin","Classes accueillies",null,38,0,null,61,0,null,null,null,null,null,null,null,null,null,null,null,{"$f":"C74+F74+I74+L74","v":0},null,{"$error":"#DIV/0!"}]
[null,"Enfants accueillis",null,1081,0,null,1391,0,null,null,null,null,null,null,null,null,null,null,null,{"$f":"C75+F75+I75+L75","v":0},null,{"$error":"#DIV/0!"}]
[null,"Accueils de classe effectués",null,"/","/",null,"/","/",null,null,null,null,null,null,null,null,null,null,null,{"$f":"SUM(O76:S76)","v":0},"/","/"]
["Cusset-Bonnevay","Classes accueillies",null,37,0,null,49,0,null,null,null,null,null,null,null,null,null,null,null,{"$f":"C77+F77+I77+L77","v":0},null,{"$error":"#DIV/0!"}]
[null,"Enfants accueillis",null,883,0,null,1164,0,null,null,null,null,null,null,null,null,null,null,null,{"$f":"C78+F78+I78+L78","v":0},null,{"$error":"#DIV/0!"}]
[null,"Accueils de classe effectués",null,"/","/",null,"/","/",null,null,null,null,null,null,null,null,null,null,null,{"$f":"SUM(O79:S79)","v":0},"/","/"]
["Cyprian-les-Brosses","Classes accueillies",1,21,4.7619047619047616E-2,null,34,0,null,null,null,null,null,null,null,1,null,null,null,{"$f":"C80+F80+I80+L80","v":1},null,{"$error":"#DIV/0!"}]
[null,"Enfants accueillis",25,573,4.3630017452006981E-2,null,747,0,null,null,null,null,null,null,null,25,null,null,null,{"$f":"C81+F81+I81+L81","v":25},null,{"$error":"#DIV/0!"}]
[null,"Accueils de classe effectués",1,"/","/",null,"/","/",null,null,null,null,null,null,null,1,null,null,null,{"$f":"SUM(O82:S82)","v":1},"/","/"]
["Ferrandière-Maisons Neuves","Classes accueillies",1,22,{"$f":"C83/D83","v":4.5454545454545456E-2},null,30,{"$f":"F83/G83","v":0},null,null,null,null,null,null,null,1,null,null,null,{"$f":"C83+F83+I83+L83","v":1},null,{"$error":"#DIV/0!"}]
[null,"Enfants accueillis",20,530,3.7735849056603772E-2,null,744,0,null,null,null,null,null,null,null,20,null,null,null,{"$f":"C84+F84+I84+L84","v":20},null,{"$error":"#DIV/0!"}]
[null,"Accueils de classe effectués",1,"/","/",null,"/","/",null,null,null,null,null,null,null,1,null,null,null,{"$f":"SUM(O85:S85)","v":1},"/","/"]
["Gratte-ciel-Dedieu-Charmettes","Classes accueillies",null,62,0,1,102,9.8039215686274508E-3,null,null,null,null,null,null,null,null,null,null,1,{"$f":"C86+F86+I86+L86","v":1},null,{"$error":"#DIV/0!"}]
[null,"Enfants accueillis",null,1575,0,25,2420,1.0330578512396695E-2,null,null,null,null,null,null,null,null,null,null,25,{"$f":"C87+F87+I87+L87","v":25},null,{"$error":"#DIV/0!"}]
[null,"Accueils de classe effectués",null,"/","/",1,"/","/",null,null,null,null,null,null,null,null,null,null,1,{"$f":"SUM(O88:S88)","v":1},"/","/"]
["Perralière-Grandclément","Classes accueillies",null,28,0,null,50,0,null,null,null,null,null,null,null,null,null,null,null,{"$f":"C89+F89+I89+L89","v":0},null,{"$error":"#DIV/0!"}]
[null,"Enfants accueillis",null,783,0,null,1219,0,null,null,null,null,null,null,null,null,null,null,null,{"$f":"C90+F90+I90+L90","v":0},null,{"$error":"#DIV/0!"}]
[null,"Accueils de classe effectués",null,"/","/",null,"/","/",null,null,null,null,null,null,null,null,null,null,null,{"$f":"SUM(O91:S91)","v":0}]
["Saint Jean","Classes accueillies",null,8,0,null,13,0,null,null,null,null,null,null,null,null,null,null,null,{"$f":"C92+F92+I92+L92","v":0},null,{"$error":"#DIV/0!"}]
[null,"Enfants accueillis",null,220,0,null,290,0,null,null,null,null,null,null,null,null,null,null,null,{"$f":"C93+F93+I93+L93","v":0},null,{"$error":"#DIV/0!"}]
[null,"Accueils de classe effectués",null,"/","/",null,"/","/",null,null,null,null,null,null,null,null,null,null,null,{"$f":"SUM(O94:S94)","v":0},"/","/"]
["Hors Villeurbanne","Classes accueillies",null,null,{"$error":"#DIV/0!"},null,null,{"$error":"#DIV/0!"},null,null,null,null,null,null,null,null,null,null,null,{"$f":"C95+F95+I95+L95","v":0},null,{"$error":"#DIV/0!"}]
[null,"Enfants accueillis",null,null,{"$error":"#DIV/0!"},null,null,{"$error":"#DIV/0!"},null,null,null,null,null,null,null,null,null,null,null,{"$f":"C96+F96+I96+L96","v":0},null,{"$error":"#DIV/0!"}]
[null,"Accueils de classe effectués",null,"/","/",null,"/","/",null,null,null,null,null,null,null,null,null,null,null,{"$f":"SUM(O97:S97)","v":0},"/","/"]
["Totaux","Classes accueillies",2,{"$f":"D71+D74+D77+D80+D83+D86+D89+D92+D95","v":243},{"$f":"C98/D98","v":8.23045267489712E-3},1,{"$f":"G71+G74+G77+G80+G83+G86+G89+G92+G95","v":383},{"$f":"F98/G98","v":2.6109660574412533E-3},null,null,null,null,null,null,null,2,null,null,1,{"$f":"T71+T74+T77+T80+T83+T86+T89+T92+T95","v":3},null,{"$f":"T98/U98","v":{"$error":"#DIV/0!"}}]
[null,"Enfants accueillis",45,{"$f":"D72+D75+D78+D81+D84+D87+D90+D93+D96","v":6359},7.0765843686114169E-3,25,{"$f":"G72+G75+G78+G81+G84+G87+G90+G93+G96","v":8983},2.7830346209506847E-3,null,null,null,null,null,null,null,45,null,null,25,{"$f":"T72+T75+T78+T81+T84+T87+T90+T93+T96","v":70},null,{"$f":"T99/U99","v":{"$error":"#DIV/0!"}}]
[null,"Accueils de classe effectués",2,"/","/",1,"/","/",0,null,null,0,null,null,0,2,0,0,1,{"$f":"T73+T76+T79+T82+T85+T88+T91+T94+T97","v":3},"/","/"]
[]
["Nombre d'accueils de classe in situ/hors les murs"]
[null,null,"In situ","Hors les murs"]
["MLIS",null,{"$f":"SUM(C105:C109)","v":2},{"$f":"SUM(D105:D109)","v":0}]
["Secteur jeunesse",null,{"$f":"COUNTIFS(Données!B:B,\"MLIS j\",Données!H:H,\"In situ\")","v":2},{"$f":"COUNTIFS(Données!B:B,\"MLIS j\",Données!H:H,\"Hors les murs\")","v":0}]
["Artothèque",null,{"$f":"COUNTIFS(Données!B:B,\"ARTO\",Données!H:H,\"In situ\")","v":0},{"$f":"COUNTIFS(Données!B:B,\"Arto\",Données!H:H,\"Hors les murs\")","v":0}]
["Discothèque-vidéothèque",null,{"$f":"COUNTIFS(Données!B:B,\"MLIS DV\",Données!H:H,\"In situ\")","v":0},{"$f":"COUNTIFS(Données!B:B,\"MLIS DV\",Données!H:H,\"Hors les murs\")","v":0}]
["Espace multimédia",null,{"$f":"COUNTIFS(Données!B:B,\"EMM\",Données!H:H,\"In situ\")","v":0},{"$f":"COUNTIFS(Données!B:B,\"EMM\",Données!H:H,\"Hors les murs\")","v":0}]
["Secteur adultes",null,{"$f":"COUNTIFS(Données!B:B,\"mlis A\",Données!H:H,\"In situ\")","v":0},{"$f":"COUNTIFS(Données!B:B,\"mlis A\",Données!H:H,\"Hors les murs\")","v":0}]
["TONKIN",null,{"$f":"COUNTIFS(Données!B:B,\"MTK\",Données!H:H,\"In situ\")","v":1},{"$f":"COUNTIFS(Données!B:B,\"MTK\",Données!H:H,\"Hors les murs\")","v":0}]
["Rize",null,{"$f":"COUNTIFS(Données!N:N,\"Rize\",Données!H:H,\"In situ\")","v":0},{"$f":"COUNTIFS(Données!N:N,\"Rize\",Données!H:H,\"Hors les murs\")","v":0}]
["PAC - Bibliobus",null,{"$f":"COUNTIFS(Données!B:B,\"PAC-BUS\",Données!H:H,\"In situ\")","v":0},{"$f":"COUNTIFS(Données!B:B,\"PAC-BUS\",Données!H:H,\"Hors les murs\")","v":0}]
["FDL",null,{"$f":"COUNTIFS(Données!B:B,\"FDL\",Données!H:H,\"In situ\")","v":0},{"$f":"COUNTIFS(Données!B:B,\"FDL\",Données!H:H,\"Hors les murs\")","v":0}]
["Nb d'accueils total",null,{"$f":"C104+C110+C111+C112+C113","v":3},{"$f":"D104+D110+D111+D112+D113","v":0}]
[]
[]
["Bilan par établissement scolaire sur l'année scolaire (primaire public)"]
[null,null,"Maternelle",null,null,"Elémentaire",null,null,"Collège",null,null,"Lycée",null,null,"Accueillie par",null,null,null,null,"Totaux"]
[null,"Nb de","Nb accueilli","Sur","%","Nb accueilli","Sur","%","Nb accueilli","Sur","%","Nb accueilli","Sur","%","FDL","MLIS","RIZE","PAC-BUS","TONKIN","Total","Sur","%"]
["Albert Camus","Classes accueillies",1,null,null,null,null,null,null,null,null,null,null,null,null,1,null,null,null,{"$f":"C120+F120+I120+L120","v":1},null,{"$f":"T120/U120","v":{"$error":"#DIV/0!"}}]
[null,"Enfants accueillis",25,null,null,null,null,null,null,null,null,null,null,null,null,25,null,null,null,{"$f":"C121+F121+I121+L121","v":25},null,{"$f":"T121/U121","v":{"$error":"#DIV/0!"}}]
[null,"Accueils de classe effectués",1,null,null,null,null,null,null,null,null,null,null,null,null,1,null,null,null,{"$f":"SUM(O122:S122)","v":1},"/","/"]
["Anatole France","Classes accueillies",null,null,null,1,null,null,null,null,null,null,null,null,null,null,null,null,1,{"$f":"C123+F123+I123+L123","v":1},null,{"$f":"T123/U123","v":{"$error":"#DIV/0!"}}]
[null,"Enfants accueillis",null,null,null,25,null,null,null,null,null,null,null,null,null,null,null,null,25,{"$f":"C124+F124+I124+L124","v":25},null,{"$error":"#DIV/0!"}]
[null,"Accueils de classe effectués",null,null,null,1,null,null,null,null,null,null,null,null,null,null,null,null,1,{"$f":"SUM(O125:S125)","v":1},"/","/"]
["Antonin Perrin","Classes accueillies",1,null,null,null,null,null,null,null,null,null,null,null,null,1,null,null,null,{"$f":"C126+F126+I126+L126","v":1},null,{"$f":"T126/U126","v":{"$error":"#DIV/0!"}}]
[null,"Enfants accueillis",20,null,null,null,null,null,null,null,null,null,null,null,null,20,null,null,null,{"$f":"C127+F127+I127+L127","v":20},null,{"$error":"#DIV/0!"}]
[null,"Accueils de classe effectués",1,null,null,null,null,null,null,null,null,null,null,null,null,1,null,null,null,{"$f":"SUM(O128:S128)","v":1},"/","/"]
["Berthelot","Classes accueillies",null,null,null,null,null,null,null,null,null,null,null,null,null,null,null,null,null,{"$f":"C129+F129+I129+L129","v":0},null,{"$f":"T129/U129","v":{"$error":"#DIV/0!"}}]
[null,"Enfants accueillis",null,null,null,null,null,null,null,null,null,null,null,null,null,null,null,null,null,{"$f":"C130+F130+I130+L130","v":0},null,{"$error":"#DIV/0!"}]
[null,"Accueils de classe effectués",null,null,null,null,null,null,null,null,null,null,null,null,null,null,null,null,null,{"$f":"SUM(O131:S131)","v":0},"/","/"]
["Château-Gaillard","Classes accueillies",null,null,null,null,null,null,null,null,null,null,null,null,null,null,null,null,null,{"$f":"C132+F132+I132+L132","v":0},null,{"$f":"T132/U132","v":{"$error":"#DIV/0!"}}]
[null,"Enfants accueillis",null,null,null,null,null,null,null,null,null,null,null,null,null,null,null,null,null,{"$f":"C133+F133+I133+L133","v":0},null,{"$error":"#DIV/0!"}]
[null,"Accueils de classe effectués",null,null,null,null,null,null,null,null,null,null,null,null,null,null,null,null,null,{"$f":"SUM(O134:S134)","v":0},"/","/"]
["Croix-Luizet","Classes accueillies",null,null,null,null,null,null,null,null,null,null,null,null,null,null,null,null,null,{"$f":"C135+F135+I135+L135","v":0},null,{"$f":"T135/U135","v":{"$error":"#DIV/0!"}}]
[null,"Enfants accueillis",null,null,null,null,null,null,null,null,null,null,null,null,null,null,null,null,null,{"$f":"C136+F136+I136+L136","v":0},null,{"$error":"#DIV/0!"}]
[null,"Accueils de classe effectués",null,null,null,null,null,null,null,null,null,null,null,null,null,null,null,null,null,{"$f":"SUM(O137:S137)","v":0},"/","/"]
["Descartes","Classes accueillies",null,null,null,null,null,null,null,null,null,null,null,null,null,null,null,null,null,{"$f":"C138+F138+I138+L138","v":0},null,{"$f":"T138/U138","v":{"$error":"#DIV/0!"}}]
[null,"Enfants accueillis",null,null,null,null,null,null,null,null,null,null,null,null,null,null,null,null,null,{"$f":"C139+F139+I139+L139","v":0},null,{"$error":"#DIV/0!"}]
[null,"Accueils de classe effectués",null,null,null,null,null,null,null,null,null,null,null,null,null,null,null,null,null,{"$f":"SUM(O140:S140)","v":0}]
["Edouard Herriot","Classes accueillies",null,null,null,null,null,null,null,null,null,null,null,null,null,null,null,null,null,{"$f":"C141+F141+I141+L141","v":0},null,{"$f":"T141/U141","v":{"$error":"#DIV/0!"}}]
[null,"Enfants accueillis",null,null,null,null,null,null,null,null,null,null,null,null,null,null,null,null,null,{"$f":"C142+F142+I142+L142","v":0},null,{"$error":"#DIV/0!"}]
[null,"Accueils de classe effectués",null,null,null,null,null,null,null,null,null,null,null,null,null,null,null,null,null,{"$f":"SUM(O143:S143)","v":0},"/","/"]
["Emile Zola","Classes accueillies",null,null,null,null,null,null,null,null,null,null,null,null,null,null,null,null,null,{"$f":"C144+F144+I144+L144","v":0},null,{"$f":"T144/U144","v":{"$error":"#DIV/0!"}}]
[null,"Enfants accueillis",null,null,null,null,null,null,null,null,null,null,null,null,null,null,null,null,null,{"$f":"C145+F145+I145+L145","v":0},null,{"$f":"T145/U145","v":{"$error":"#DIV/0!"}}]
[null,"Accueils de classe effectués",null,null,null,null,null,null,null,null,null,null,null,null,null,null,null,null,null,{"$f":"SUM(O146:S146)","v":0},"/","/"]
["Ernest Renan A","Classes accueillies",null,null,null,null,null,null,null,null,null,null,null,null,null,null,null,null,null,{"$f":"C147+F147+I147+L147","v":0},null,{"$f":"T147/U147","v":{"$error":"#DIV/0!"}}]
[null,"Enfants accueillis",null,null,null,null,null,null,null,null,null,null,null,null,null,null,null,null,null,{"$f":"C148+F148+I148+L148","v":0},null,{"$error":"#DIV/0!"}]
[null,"Accueils de classe effectués",null,null,null,null,null,null,null,null,null,null,null,null,null,null,null,null,null,{"$f":"SUM(O149:S149)","v":0},"/","/"]
["Ernest Renan B","Classes accueillies",null,null,null,null,null,null,null,null,null,null,null,null,null,null,null,null,null,{"$f":"C150+F150+I150+L150","v":0},null,{"$f":"T150/U150","v":{"$error":"#DIV/0!"}}]
[null,"Enfants accueillis",null,null,null,null,null,null,null,null,null,null,null,null,null,null,null,null,null,{"$f":"C151+F151+I151+L151","v":0},null,{"$error":"#DIV/0!"}]
[null,"Accueils de classe effectués",null,null,null,null,null,null,null,null,null,null,null,null,null,null,null,null,null,{"$f":"SUM(O152:S152)","v":0},"/","/"]
["François Truffaut","Classes accueillies",null,null,null,null,null,null,null,null,null,null,null,null,null,null,null,null,null,{"$f":"C153+F153+I153+L153","v":0},null,{"$f":"T153/U153","v":{"$error":"#DIV/0!"}}]
[null,"Enfants accueillis",null,null,null,null,null,null,null,null,null,null,null,null,null,null,null,null,null,{"$f":"C154+F154+I154+L154","v":0},null,{"$error":"#DIV/0!"}]
[null,"Accueils de classe effectués",null,null,null,null,null,null,null,null,null,null,null,null,null,null,null,null,null,{"$f":"SUM(O155:S155)","v":0},"/","/"]
["Jacques Prévert","Classes accueillies",null,null,null,null,null,null,null,null,null,null,null,null,null,null,null,null,null,{"$f":"C156+F156+I156+L156","v":0},null,{"$f":"T156/U156","v":{"$error":"#DIV/0!"}}]
[null,"Enfants accueillis",null,null,null,null,null,null,null,null,null,null,null,null,null,null,null,null,null,{"$f":"C157+F157+I157+L157","v":0},null,{"$error":"#DIV/0!"}]
[null,"Accueils de classe effectués",null,null,null,null,null,null,null,null,null,null,null,null,null,null,null,null,null,{"$f":"SUM(O158:S158)","v":0},"/","/"]
["Jean Jaurès (primaire)","Classes accueillies",null,null,null,null,null,null,null,null,null,null,null,null,null,null,null,null,null,{"$f":"C159+F159+I159+L159","v":0},null,{"$f":"T159/U159","v":{"$error":"#DIV/0!"}}]
[null,"Enfants accueillis",null,null,null,null,null,null,null,null,null,null,null,null,null,null,null,null,null,{"$f":"C160+F160+I160+L160","v":0},null,{"$error":"#DIV/0!"}]
[null,"Accueils de classe effectués",null,null,null,null,null,null,null,null,null,null,null,null,null,null,null,null,null,{"$f":"SUM(O161:S161)","v":0},"/","/"]
["Jean Moulin","Classes accueillies",null,null,null,null,null,null,null,null,null,null,null,null,null,null,null,null,null,{"$f":"C162+F162+I162+L162","v":0},null,{"$f":"T162/U162","v":{"$error":"#DIV/0!"}}]
[null,"Enfants accueillis",null,null,null,null,null,null,null,null,null,null,null,null,null,null,null,null,null,{"$f":"C163+F163+I163+L163","v":0},null,{"$error":"#DIV/0!"}]
[null,"Accueils de classe effectués",null,null,null,null,null,null,null,null,null,null,null,null,null,null,null,null,null,{"$f":"SUM(O164:S164)","v":0}]
["Jean Zay","Classes accueillies",null,null,null,null,null,null,null,null,null,null,null,null,null,null,null,null,null,{"$f":"C165+F165+I165+L165","v":0},null,{"$f":"T165/U165","v":{"$error":"#DIV/0!"}}]
[null,"Enfants accueillis",null,null,null,null,null,null,null,null,null,null,null,null,null,null,null,null,null,{"$f":"C166+F166+I166+L166","v":0},null,{"$error":"#DIV/0!"}]
[null,"Accueils de classe effectués",null,null,null,null,null,null,null,null,null,null,null,null,null,null,null,null,null,{"$f":"SUM(O167:S167)","v":0},"/","/"]
["Jules Ferry","Classes accueillies",null,null,null,null,null,null,null,null,null,null,null,null,null,null,null,null,null,{"$f":"C168+F168+I168+L168","v":0},null,{"$f":"T168/U168","v":{"$error":"#DIV/0!"}}]
[null,"Enfants accueillis",null,null,null,null,null,null,null,null,null,null,null,null,null,null,null,null,null,{"$f":"C169+F169+I169+L169","v":0},null,{"$f":"T169/U169","v":{"$error":"#DIV/0!"}}]
[null,"Accueils de classe effectués",null,null,null,null,null,null,null,null,null,null,null,null,null,null,null,null,null,{"$f":"SUM(O170:S170)","v":0},"/","/"]
["Jules Guesde","Classes accueillies",null,null,null,null,null,null,null,null,null,null,null,null,null,null,null,null,null,{"$f":"C171+F171+I171+L171","v":0},null,{"$f":"T171/U171","v":{"$error":"#DIV/0!"}}]
[null,"Enfants accueillis",null,null,null,null,null,null,null,null,null,null,null,null,null,null,null,null,null,{"$f":"C172+F172+I172+L172","v":0},null,{"$error":"#DIV/0!"}]
[null,"Accueils de classe effectués",null,null,null,null,null,null,null,null,null,null,null,null,null,null,null,null,null,{"$f":"SUM(O173:S173)","v":0},"/","/"]
["Lakanal","Classes accueillies",null,null,null,null,null,null,null,null,null,null,null,null,null,null,null,null,null,{"$f":"C174+F174+I174+L174","v":0},null,{"$f":"T174/U174","v":{"$error":"#DIV/0!"}}]
[null,"Enfants accueillis",null,null,null,null,null,null,null,null,null,null,null,null,null,null,null,null,null,{"$f":"C175+F175+I175+L175","v":0},null,{"$error":"#DIV/0!"}]
[null,"Accueils de classe effectués",null,null,null,null,null,null,null,null,null,null,null,null,null,null,null,null,null,{"$f":"SUM(O176:S176)","v":0},"/","/"]
["Lazare Goujon","Classes accueillies",null,null,null,null,null,null,null,null,null,null,null,null,null,null,null,null,null,{"$f":"C177+F177+I177+L177","v":0},null,{"$f":"T177/U177","v":{"$error":"#DIV/0!"}}]
[null,"Enfants accueillis",null,null,null,null,null,null,null,null,null,null,null,null,null,null,null,null,null,{"$f":"C178+F178+I178+L178","v":0},null,{"$error":"#DIV/0!"}]
[null,"Accueils de classe effectués",null,null,null,null,null,null,null,null,null,null,null,null,null,null,null,null,null,{"$f":"SUM(O179:S179)","v":0},"/","/"]
["Léon Jouhaux","Classes accueillies",null,null,null,null,null,null,null,null,null,null,null,null,null,null,null,null,null,{"$f":"C180+F180+I180+L180","v":0},null,{"$f":"T180/U180","v":{"$error":"#DIV/0!"}}]
[null,"Enfants accueillis",null,null,null,null,null,null,null,null,null,null,null,null,null,null,null,null,null,{"$f":"C181+F181+I181+L181","v":0},null,{"$error":"#DIV/0!"}]
[null,"Accueils de classe effectués",null,null,null,null,null,null,null,null,null,null,null,null,null,null,null,null,null,{"$f":"SUM(O182:S182)","v":0},"/","/"]
["Louis Armand","Classes accueillies",null,null,null,null,null,null,null,null,null,null,null,null,null,null,null,null,null,{"$f":"C183+F183+I183+L183","v":0},null,{"$f":"T183/U183","v":{"$error":"#DIV/0!"}}]
[null,"Enfants accueillis",null,null,null,null,null,null,null,null,null,null,null,null,null,null,null,null,null,{"$f":"C184+F184+I184+L184","v":0},null,{"$error":"#DIV/0!"}]
[null,"Accueils de classe effectués",null,null,null,null,null,null,null,null,null,null,null,null,null,null,null,null,null,{"$f":"SUM(O185:S185)","v":0},"/","/"]
["Louis Pasteur","Classes accueillies",null,null,null,null,null,null,null,null,null,null,null,null,null,null,null,null,null,{"$f":"C186+F186+I186+L186","v":0},null,{"$f":"T186/U186","v":{"$error":"#DIV/0!"}}]
[null,"Enfants accueillis",null,null,null,null,null,null,null,null,null,null,null,null,null,null,null,null,null,{"$f":"C187+F187+I187+L187","v":0},null,{"$error":"#DIV/0!"}]
[null,"Accueils de classe effectués",null,null,null,null,null,null,null,null,null,null,null,null,null,null,null,null,null,{"$f":"SUM(O188:S188)","v":0}]
["Rosa Parks","Classes accueillies",null,null,null,null,null,null,null,null,null,null,null,null,null,null,null,null,null,{"$f":"C189+F189+I189+L189","v":0},null,{"$f":"T189/U189","v":{"$error":"#DIV/0!"}}]
[null,"Enfants accueillis",null,null,null,null,null,null,null,null,null,null,null,null,null,null,null,null,null,{"$f":"C190+F190+I190+L190","v":0},null,{"$error":"#DIV/0!"}]
[null,"Accueils de classe effectués",null,null,null,null,null,null,null,null,null,null,null,null,null,null,null,null,null,{"$f":"SUM(O191:S191)","v":0},"/","/"]
["Saint Exupéry","Classes accueillies",null,null,null,null,null,null,null,null,null,null,null,null,null,null,null,null,null,{"$f":"C192+F192+I192+L192","v":0},null,{"$f":"T192/U192","v":{"$error":"#DIV/0!"}}]
[null,"Enfants accueillis",null,null,null,null,null,null,null,null,null,null,null,null,null,null,null,null,null,{"$f":"C193+F193+I193+L193","v":0},null,{"$f":"T193/U193","v":{"$error":"#DIV/0!"}}]
[null,"Accueils de classe effectués",null,null,null,null,null,null,null,null,null,null,null,null,null,null,null,null,null,{"$f":"SUM(O194:S194)","v":0},"/","/"]
["Simone Veil","Classes accueillies",null,null,null,null,null,null,null,null,null,null,null,null,null,null,null,null,null,{"$f":"C195+F195+I195+L195","v":0},null,{"$f":"T195/U195","v":{"$error":"#DIV/0!"}}]
[null,"Enfants accueillis",null,null,null,null,null,null,null,null,null,null,null,null,null,null,null,null,null,{"$f":"C196+F196+I196+L196","v":0},null,{"$error":"#DIV/0!"}]
[null,"Accueils de classe effectués",null,null,null,null,null,null,null,null,null,null,null,null,null,null,null,null,null,{"$f":"SUM(O197:S197)","v":0},"/","/"]
["Tonkin/Nigritelle","Classes accueillies",null,null,null,null,null,null,null,null,null,null,null,null,null,null,null,null,null,{"$f":"C198+F198+I198+L198","v":0},null,{"$f":"T198/U198","v":{"$error":"#DIV/0!"}}]
[null,"Enfants accueillis",null,null,null,null,null,null,null,null,null,null,null,null,null,null,null,null,null,{"$f":"C199+F199+I199+L199","v":0},null,{"$error":"#DIV/0!"}]
[null,"Accueils de classe effectués",null,null,null,null,null,null,null,null,null,null,null,null,null,null,null,null,null,{"$f":"SUM(O200:S200)","v":0},"/","/"]

{"sheet":"listes","index":4,"n_rows":52,"n_cols":23,"rows_kept":52,"cut":false,"hidden":false,"merged":[]}
["Niveau classe","Secteur organisateur","Réseau","Rizehorsmed","Type de visite","Etablissement scolaire","In situ / hors les murs","Classe accueillie pour la…fois","Quartiers","Buers-Croix-Luizet","Charpennes-Tonkin","Cusset-Bonnevay","Cyprian-les-Brosses","Ferrandière-Maisons Neuves","Gratte-ciel-Dedieu-Charmettes","Perralière-Grandclément","Saint Jean","Hors Villeurbanne","Niveaux classe","Maternelle","Elémentaire","Collège","Lycée"]
["autres (maternelle)","FDL","ARTO","RIZE ARCHI","Album","Hors Villeurbanne","In situ",1,null,"Collège Jean Macé","Tonkin/Nigritelle","Ernest Renan A","Albert Camus","Antonin Perrin","Anatole France","Berthelot","Saint Exupéry","Hors Villeurbanne",null,"autres (maternelle)","autres (élémentaire)","autres (collège)","autres (lycée)"]
["autres (élémentaire)","ARTO","EMM","RIZE VALO","Atelier Youtuber","Albert Camus","Hors les murs",2,null,"Croix-Luizet","Descartes","Ernest Renan B","Jules Guesde","Jean Jaurès (primaire)","Edouard Herriot","Louis Pasteur","Collège Jean-Vilar",null,null,"tps","cp","6°","2°"]
["autres (collège)","EMM","MLIS A",null,"Autour de la musique","Anatole France",null,3,null,"Jean Moulin","François Truffaut","Jules Ferry","Simone Veil","Collège Jean Jaurès","Emile Zola","René Pellet (déficients visuels)","Collège Simone Lagrange",null,null,"ps","cp/ce1","5°","2° pro"]
["autres (lycée)","MLIS A","MLIS DV",null,"Autour du cinéma","Antonin Perrin",null,4,null,"Château-Gaillard","Lakanal","Lazare Goujon","Collège Lamartine","Collège Louis Jouvet","Jacques Prévert","La Nativité (privé)",null,null,null,"ps/ms","ce1","4°","1°"]
["tps","MLIS DV","MLIS J",null,"Arrêt Bibliobus","Berthelot",null,5,null,null,"Louis Armand","Lycée Frédéric Faÿs","Lycée Alfred de Musset",null,"Jean Zay","Immaculée conception (privé)",null,null,null,"ps/gs","ce1/ce2","3°","1° pro"]
["ps","MLIS J","MTK",null,"Ateliers","Beth Menahem (privé)",null,6,null,null,"Mère Teresa (privé)","Beth Menahem (privé)",null,null,"Léon Jouhaux","Lycée Marie Curie",null,null,null,"ms","ce2","ULIS (collège)","Tle"]
["ps/ms","MTK","PAC-BUS",null,"Autre","Château-Gaillard",null,7,null,null,"Ecole Horizons (privé)","Collège des Iris",null,null,"Rosa Parks",null,null,null,null,"ms/gs","ce2/cm1","UP2A (collège)","Tle pro"]
["ps/gs","PAC-BUS","RIZE MED",null,"Book Creator","Croix-Luizet",null,8,null,null,"Collège du Tonkin",null,null,null,"Ste Thérèse (privé)",null,null,null,null,"gs","cm1",null,"ULIS (lycée)"]
["ms","RIZE ARCHI",null,null,"Coder avec Scratch","Descartes",null,9,null,null,null,null,null,null,"Ecole juive de Lyon (privé)",null,null,null,null,null,"cm1/cm2"]
["ms/gs","RIZE MED",null,null,"Conte","Ecole Horizons (privé)",null,10,null,null,null,null,null,null,"Collège des Gratte-Ciel (Môrice Leroux)",null,null,null,null,null,"cm2"]
["gs","RIZE VALO",null,null,"De la littérature au cinéma","Ecole juive de Lyon (privé)",null,11,null,null,null,null,null,null,"Lycée Pierre Brossolette",null,null,null,null,null,"ULIS (école)"]
["cp",null,null,null,"Diptyque","Edouard Herriot",null,12,null,null,null,null,null,null,"Lycée Magenta",null,null,null,null,null,"UP2A (élémentaire)"]
["cp/ce1",null,null,null,"Double jeu","Emile Zola",null,13,null,null,null,null,null,null,"Montessori (privé)"]
["ce1",null,null,null,"Et si on parlait d'art ?","Ernest Renan A",null,14]
["ce1/ce2",null,null,null,"Exploration Gratte-Ciel","Ernest Renan B",null,15]
["ce2",null,null,null,"Exploration sensorielle","François Truffaut",null,16]
["ce2/cm1",null,null,null,"Exploration urbaine","Immaculée conception (privé)"]
["cm1",null,null,null,"Exposition","Jacques Prévert"]
["cm1/cm2",null,null,null,"Il était une fois l'art contemporain","Jean Jaurès (primaire)"]
["cm2",null,null,null,"Image & son,  passages","Jean Moulin"]
["ULIS (école)",null,null,null,"La maison des livres","Jean Zay"]
["UP2A (élémentaire)",null,null,null,"Première lecture","Jules Ferry"]
["6°",null,null,null,"Projet FDL","Jules Guesde"]
["5°",null,null,null,"Recherche documentaire","La Nativité (privé)"]
["4°",null,null,null,"Recherche multimédias","Lakanal"]
["3°",null,null,null,"Résidence FDL","Lazare Goujon"]
["ULIS (collège)",null,null,null,"Spectacle","Léon Jouhaux"]
["UP2A (collège)",null,null,null,"Stop motion","Louis Armand"]
["2°",null,null,null,"Tapis à conter","Louis Pasteur"]
["2° pro",null,null,null,"Visite à la carte","Mère Teresa (privé)"]
["1°",null,null,null,"Visite découverte","Montessori (privé)"]
["1° pro",null,null,null,"Visite thématique","René Pellet (déficients visuels)"]
["Tle",null,null,null,"Visite couplée","Rosa Parks"]
["Tle pro",null,null,null,"Visite médiathèque","Saint Exupéry"]
["ULIS (lycée)",null,null,null,"Visite poésie","Simone Veil"]
[null,null,null,null,null,"Ste Thérèse (privé)"]
[null,null,null,null,null,"Tonkin/Nigritelle"]
[null,null,null,null,null,"Collège des Gratte-Ciel (Môrice Leroux)"]
[null,null,null,null,null,"Collège des Iris"]
[null,null,null,null,null,"Collège du Tonkin"]
[null,null,null,null,null,"Collège Jean Jaurès"]
[null,null,null,null,null,"Collège Jean Macé"]
[null,null,null,null,null,"Collège Jean-Vilar"]
[null,null,null,null,null,"Collège Lamartine"]
[null,null,null,null,null,"Collège Louis Jouvet"]
[null,null,null,null,null,"Collège Simone Lagrange"]
[null,null,null,null,null,"Lycée Alfred de Musset"]
[null,null,null,null,null,"Lycée Frédéric Faÿs"]
[null,null,null,null,null,"Lycée Marie Curie"]
[null,null,null,null,null,"Lycée Pierre Brossolette"]
[null,null,null,null,null,"Lycée Magenta"]

{"sheet":"Regroupements","index":5,"n_rows":54,"n_cols":21,"rows_kept":54,"cut":false,"hidden":false,"merged":[]}
["nom regroupement","reg_Sect",null,null,null,null,null,null,null,null,null,null,"reg_Niv",null,null,null,null,null,null,"reg_Quart"]
[]
[null,"Secteur organisateur","Réseau des médiathèques","Accueils menés seulement par le Rize (hors médiathèque)","FDL","MLIS","RIZE","TONKIN","PAC-BUS","FDL",null,null,"Niveau de classe","Maternelle","Elémentaire","Ecole (Mat+Element)","Collège","Lycée",null,"Etablissement scolaire","Quartier"]
[null,"FDL",null,null,"x",null,null,null,null,"x",null,null,"autres (maternelle)","x",null,"x",null,null,null,"Hors Villeurbanne","Hors Villeurbanne"]
[null,"ARTO","x",null,null,"x",null,null,null,null,null,null,"autres (élémentaire)",null,"x","x",null,null,null,"Albert Camus","Cyprian-les-Brosses"]
[null,"EMM","x",null,null,"x",null,null,null,null,null,null,"autres (collège)",null,null,null,"x",null,null,"Anatole France","Gratte-ciel-Dedieu-Charmettes"]
[null,"MLIS A","x",null,null,"x",null,null,null,null,null,null,"autres (lycée)",null,null,null,null,"x",null,"Antonin Perrin","Ferrandière-Maisons Neuves"]
[null,"MLIS DV","x",null,null,"x",null,null,null,null,null,null,"tps","x",null,"x",null,null,null,"Berthelot","Perralière-Grandclément"]
[null,"MLIS J","x",null,null,"x",null,null,null,null,null,null,"ps","x",null,"x",null,null,null,"Beth Menahem (privé)","Cusset-Bonnevay"]
[null,"MTK","x",null,null,null,null,"x",null,null,null,null,"ps/ms","x",null,"x",null,null,null,"Château-Gaillard","Buers-Croix-Luizet"]
[null,"PAC-BUS","x",null,null,null,null,null,"x",null,null,null,"ps/gs","x",null,"x",null,null,null,"Croix-Luizet","Buers-Croix-Luizet"]
[null,"RIZE ARCHI",null,"x",null,null,"x",null,null,null,null,null,"ms","x",null,"x",null,null,null,"Descartes","Charpennes-Tonkin"]
[null,"RIZE MED","x",null,null,null,"x",null,null,null,null,null,"ms/gs","x",null,"x",null,null,null,"Ecole Horizons (privé)","Charpennes-Tonkin"]
[null,"RIZE VALO",null,"x",null,null,"x",null,null,null,null,null,"gs","x",null,"x",null,null,null,"Ecole juive de Lyon (privé)","Gratte-ciel-Dedieu-Charmettes"]
[null,null,null,null,null,null,null,null,null,null,null,null,"cp",null,"x","x",null,null,null,"Edouard Herriot","Gratte-ciel-Dedieu-Charmettes"]
[null,null,null,null,null,null,null,null,null,null,null,null,"cp/ce1",null,"x","x",null,null,null,"Emile Zola","Gratte-ciel-Dedieu-Charmettes"]
[null,null,null,null,null,null,null,null,null,null,null,null,"ce1",null,"x","x",null,null,null,"Ernest Renan A","Cusset-Bonnevay"]
[null,null,null,null,null,null,null,null,null,null,null,null,"ce1/ce2",null,"x","x",null,null,null,"Ernest Renan B","Cusset-Bonnevay"]
[null,null,null,null,null,null,null,null,null,null,null,null,"ce2",null,"x","x",null,null,null,"François Truffaut","Charpennes-Tonkin"]
[null,null,null,null,null,null,null,null,null,null,null,null,"ce2/cm1",null,"x","x",null,null,null,"Immaculée conception (privé)","Perralière-Grandclément"]
[null,null,null,null,null,null,null,null,null,null,null,null,"cm1",null,"x","x",null,null,null,"Jacques Prévert","Gratte-ciel-Dedieu-Charmettes"]
[null,null,null,null,null,null,null,null,null,null,null,null,"cm1/cm2",null,"x","x",null,null,null,"Jean Jaurès (primaire)","Ferrandière-Maisons Neuves"]
[null,null,null,null,null,null,null,null,null,null,null,null,"cm2",null,"x","x",null,null,null,"Jean Moulin","Buers-Croix-Luizet"]
[null,null,null,null,null,null,null,null,null,null,null,null,"ULIS (école)",null,"x","x",null,null,null,"Jean Zay","Gratte-ciel-Dedieu-Charmettes"]
[null,null,null,null,null,null,null,null,null,null,null,null,"UP2A (élémentaire)",null,"x","x",null,null,null,"Jules Ferry","Cusset-Bonnevay"]
[null,null,null,null,null,null,null,null,null,null,null,null,"6°",null,null,null,"x",null,null,"Jules Guesde","Cyprian-les-Brosses"]
[null,null,null,null,null,null,null,null,null,null,null,null,"5°",null,null,null,"x",null,null,"La Nativité (privé)","Perralière-Grandclément"]
[null,null,null,null,null,null,null,null,null,null,null,null,"4°",null,null,null,"x",null,null,"Lakanal","Charpennes-Tonkin"]
[null,null,null,null,null,null,null,null,null,null,null,null,"3°",null,null,null,"x",null,null,"Lazare Goujon","Cusset-Bonnevay"]
[null,null,null,null,null,null,null,null,null,null,null,null,"ULIS (collège)",null,null,null,"x",null,null,"Léon Jouhaux","Gratte-ciel-Dedieu-Charmettes"]
[null,null,null,null,null,null,null,null,null,null,null,null,"UP2A (collège)",null,null,null,"x",null,null,"Louis Armand","Charpennes-Tonkin"]
[null,null,null,null,null,null,null,null,null,null,null,null,"2°",null,null,null,null,"x",null,"Louis Pasteur","Perralière-Grandclément"]
[null,null,null,null,null,null,null,null,null,null,null,null,"2° pro",null,null,null,null,"x",null,"Mère Teresa (privé)","Charpennes-Tonkin"]
[null,null,null,null,null,null,null,null,null,null,null,null,"1°",null,null,null,null,"x",null,"Montessori (privé)","Gratte-ciel-Dedieu-Charmettes"]
[null,null,null,null,null,null,null,null,null,null,null,null,"1° pro",null,null,null,null,"x",null,"René Pellet (déficients visuels)","Perralière-Grandclément"]
[null,null,null,null,null,null,null,null,null,null,null,null,"Tle",null,null,null,null,"x",null,"Rosa Parks","Gratte-ciel-Dedieu-Charmettes"]
[null,null,null,null,null,null,null,null,null,null,null,null,"Tle pro",null,null,null,null,"x",null,"Saint Exupéry","Saint Jean"]
[null,null,null,null,null,null,null,null,null,null,null,null,"ULIS (lycée)",null,null,null,null,"x",null,"Simone Veil","Cyprian-les-Brosses"]
[null,null,null,null,null,null,null,null,null,null,null,null,null,null,null,null,null,null,null,"Ste Thérèse (privé)","Gratte-ciel-Dedieu-Charmettes"]
[null,null,null,null,null,null,null,null,null,null,null,null,null,null,null,null,null,null,null,"Tonkin/Nigritelle","Charpennes-Tonkin"]
[null,null,null,null,null,null,null,null,null,null,null,null,null,null,null,null,null,null,null,"Collège des Gratte-Ciel (Môrice Leroux)","Gratte-ciel-Dedieu-Charmettes"]
[null,null,null,null,null,null,null,null,null,null,null,null,null,null,null,null,null,null,null,"Collège des Iris","Cusset-Bonnevay"]
[null,null,null,null,null,null,null,null,null,null,null,null,null,null,null,null,null,null,null,"Collège du Tonkin","Charpennes-Tonkin"]
[null,null,null,null,null,null,null,null,null,null,null,null,null,null,null,null,null,null,null,"Collège Jean Jaurès","Ferrandière-Maisons Neuves"]
[null,null,null,null,null,null,null,null,null,null,null,null,null,null,null,null,null,null,null,"Collège Jean Macé","Buers-Croix-Luizet"]
[null,null,null,null,null,null,null,null,null,null,null,null,null,null,null,null,null,null,null,"Collège Jean-Vilar","Saint Jean"]
[null,null,null,null,null,null,null,null,null,null,null,null,null,null,null,null,null,null,null,"Collège Lamartine","Cyprian-les-Brosses"]
[null,null,null,null,null,null,null,null,null,null,null,null,null,null,null,null,null,null,null,"Collège Louis Jouvet","Ferrandière-Maisons Neuves"]
[null,null,null,null,null,null,null,null,null,null,null,null,null,null,null,null,null,null,null,"Collège Simone Lagrange","Saint Jean"]
[null,null,null,null,null,null,null,null,null,null,null,null,null,null,null,null,null,null,null,"Lycée Alfred de Musset","Cyprian-les-Brosses"]
[null,null,null,null,null,null,null,null,null,null,null,null,null,null,null,null,null,null,null,"Lycée Frédéric Faÿs","Cusset-Bonnevay"]
[null,null,null,null,null,null,null,null,null,null,null,null,null,null,null,null,null,null,null,"Lycée Marie Curie","Perralière-Grandclément"]
[null,null,null,null,null,null,null,null,null,null,null,null,null,null,null,null,null,null,null,"Lycée Pierre Brossolette","Gratte-ciel-Dedieu-Charmettes"]
[null,null,null,null,null,null,null,null,null,null,null,null,null,null,null,null,null,null,null,"Lycée Magenta","Gratte-ciel-Dedieu-Charmettes"]